Workbook

Sheet База
A1: Калькулятор
A2: Проводка ремонта | B2: 56% | C2: 17
B3: =(B2*100-C2+A3*10)/100 -> 0.39 | C3: =C2+A3 -> 17
B4: =(B3*100-C3+A4*10)/100 -> 0.22 | C4: =C3+A4 -> 17
B5: =(B4*100-C4+A5*10)/100 -> 0.05 | C5: =C4+A5 -> 17
F6: =SUMPRODUCT((База[Уник]<>"")/COUNTIF(База[Уник],База[Уник]&"")) -> 144 | G6: =SUBTOTAL(2,База[Количество ремонтов]) -> 145
A7: От | B7: от_ | C7: До | D7: до_ | E7: № события | F7: 1-6 | G7: № действия | H7: Столбец1 | I7: % износа | J7: Количество ремонтов | K7: Уник | L7: Есть в униках? | M7: Столбец2 | N7: Столбец3
A8: 2016-03-14T01:01:23 | B8: =MOD(База[[#This Row],[От]],1) -> 01:01:23 | C8: 2016-03-14T16:10:21 | D8: =MOD(База[[#This Row],[До]],1) -> 16:10:21 | E8: Событие1 | F8: №3 | G8: действие1 | I8: 0.54 | J8: 16 | K8: =База[[#This Row],[№ события]]&База[[#This Row],[ 1-6]]&База[[#This Row],[№ действия]] -> Событие1№3действие1 | L8: =AND(VLOOKUP(База[[#This Row],[Уник]],Уникальные[],2,FALSE)<>0,VLOOKUP(База[[#This Row],[Уник]],Уникальные[],3,FALSE)<>0) -> TRUE | M8: =VLOOKUP(База[[#This Row],[Уник]],Уникальные[],2,FALSE) -> 17:22:26 | N8: =VLOOKUP(База[[#This Row],[Уник]],Уникальные[],3,FALSE) -> 18:08:24
A9: 2016-03-14T01:18:14 | B9: =MOD(База[[#This Row],[От]],1) -> 01:18:14 | C9: 2016-03-14T01:25:43 | D9: =MOD(База[[#This Row],[До]],1) -> 01:25:43 | E9: Событие2 | F9: №3 | G9: действие2 | I9: 0.61 | J9: 24 | K9: =База[[#This Row],[№ события]]&База[[#This Row],[ 1-6]]&База[[#This Row],[№ действия]] -> Событие2№3действие2 | L9: =AND(VLOOKUP(База[[#This Row],[Уник]],Уникальные[],2,FALSE)<>0,VLOOKUP(База[[#This Row],[Уник]],Уникальные[],3,FALSE)<>0) -> TRUE | M9: =VLOOKUP(База[[#This Row],[Уник]],Уникальные[],2,FALSE) -> 01:25:43 | N9: =VLOOKUP(База[[#This Row],[Уник]],Уникальные[],3,FALSE) -> 04:37:33
A10: 2016-03-14T01:26:29 | B10: =MOD(База[[#This Row],[От]],1) -> 01:26:29 | C10: 2016-03-14T16:11:29 | D10: =MOD(База[[#This Row],[До]],1) -> 16:11:29 | E10: Событие3 | F10: №1 | G10: действие3 | I10: 0.37 | J10: 27 | K10: =База[[#This Row],[№ события]]&База[[#This Row],[ 1-6]]&База[[#This Row],[№ действия]] -> Событие3№1действие3 | L10: =AND(VLOOKUP(База[[#This Row],[Уник]],Уникальные[],2,FALSE)<>0,VLOOKUP(База[[#This Row],[Уник]],Уникальные[],3,FALSE)<>0) -> TRUE | M10: =VLOOKUP(База[[#This Row],[Уник]],Уникальные[],2,FALSE) -> 16:11:29 | N10: =VLOOKUP(База[[#This Row],[Уник]],Уникальные[],3,FALSE) -> 01:26:29
A11: 2016-03-14T01:26:37 | B11: =MOD(База[[#This Row],[От]],1) -> 01:26:37 | C11: 2016-03-14T12:29:34 | D11: =MOD(База[[#This Row],[До]],1) -> 12:29:34 | E11: Событие3 | F11: №2 | G11: действие4 | I11: 0.87 | J11: 13 | K11: =База[[#This Row],[№ события]]&База[[#This Row],[ 1-6]]&База[[#This Row],[№ действия]] -> Событие3№2действие4 | L11: =AND(VLOOKUP(База[[#This Row],[Уник]],Уникальные[],2,FALSE)<>0,VLOOKUP(База[[#This Row],[Уник]],Уникальные[],3,FALSE)<>0) -> TRUE | M11: =VLOOKUP(База[[#This Row],[Уник]],Уникальные[],2,FALSE) -> 12:29:34 | N11: =VLOOKUP(База[[#This Row],[Уник]],Уникальные[],3,FALSE) -> 13:18:40
A12: 2016-03-14T01:27:08 | B12: =MOD(База[[#This Row],[От]],1) -> 01:27:08 | C12: 2016-03-14T19:36:22 | D12: =MOD(База[[#This Row],[До]],1) -> 19:36:22 | E12: Событие4 | F12: №2 | G12: действие5 | I12: 1 | J12: 9 | K12: =База[[#This Row],[№ события]]&База[[#This Row],[ 1-6]]&База[[#This Row],[№ действия]] -> Событие4№2действие5 | L12: =AND(VLOOKUP(База[[#This Row],[Уник]],Уникальные[],2,FALSE)<>0,VLOOKUP(База[[#This Row],[Уник]],Уникальные[],3,FALSE)<>0) ->  | M12: =VLOOKUP(База[[#This Row],[Уник]],Уникальные[],2,FALSE) ->  | N12: =VLOOKUP(База[[#This Row],[Уник]],Уникальные[],3,FALSE) -> 
A13: 2016-03-14T01:27:16 | B13: =MOD(База[[#This Row],[От]],1) -> 01:27:16 | C13: 2016-03-14T19:36:30 | D13: =MOD(База[[#This Row],[До]],1) -> 19:36:30 | E13: Событие4 | F13: №3 | G13: действие6 | I13: 0.84 | J13: 16 | K13: =База[[#This Row],[№ события]]&База[[#This Row],[ 1-6]]&База[[#This Row],[№ действия]] -> Событие4№3действие6 | L13: =AND(VLOOKUP(База[[#This Row],[Уник]],Уникальные[],2,FALSE)<>0,VLOOKUP(База[[#This Row],[Уник]],Уникальные[],3,FALSE)<>0) ->  | M13: =VLOOKUP(База[[#This Row],[Уник]],Уникальные[],2,FALSE) ->  | N13: =VLOOKUP(База[[#This Row],[Уник]],Уникальные[],3,FALSE) -> 
A14: 2016-03-14T01:27:29 | B14: =MOD(База[[#This Row],[От]],1) -> 01:27:29 | C14: 2016-03-14T16:12:35 | D14: =MOD(База[[#This Row],[До]],1) -> 16:12:35 | E14: Событие4 | F14: №6 | G14: действие7 | I14: 0.56 | J14: 24 | K14: =База[[#This Row],[№ события]]&База[[#This Row],[ 1-6]]&База[[#This Row],[№ действия]] -> Событие4№6действие7 | L14: =AND(VLOOKUP(База[[#This Row],[Уник]],Уникальные[],2,FALSE)<>0,VLOOKUP(База[[#This Row],[Уник]],Уникальные[],3,FALSE)<>0) ->  | M14: =VLOOKUP(База[[#This Row],[Уник]],Уникальные[],2,FALSE) ->  | N14: =VLOOKUP(База[[#This Row],[Уник]],Уникальные[],3,FALSE) -> 
A15: 2016-03-14T01:29:34 | B15: =MOD(База[[#This Row],[От]],1) -> 01:29:34 | C15: 2016-03-14T19:37:14 | D15: =MOD(База[[#This Row],[До]],1) -> 19:37:14 | E15: Событие5 | F15: №5 | G15: действие8 | I15: 0.56 | J15: 24 | K15: =База[[#This Row],[№ события]]&База[[#This Row],[ 1-6]]&База[[#This Row],[№ действия]] -> Событие5№5действие8 | L15: =AND(VLOOKUP(База[[#This Row],[Уник]],Уникальные[],2,FALSE)<>0,VLOOKUP(База[[#This Row],[Уник]],Уникальные[],3,FALSE)<>0) ->  | M15: =VLOOKUP(База[[#This Row],[Уник]],Уникальные[],2,FALSE) ->  | N15: =VLOOKUP(База[[#This Row],[Уник]],Уникальные[],3,FALSE) -> 
A16: 2016-03-14T01:29:43 | B16: =MOD(База[[#This Row],[От]],1) -> 01:29:43 | C16: 2016-03-14T18:43:31 | D16: =MOD(База[[#This Row],[До]],1) -> 18:43:31 | E16: Событие5 | F16: №6 | G16: действие9 | I16: 0.54 | J16: 15 | K16: =База[[#This Row],[№ события]]&База[[#This Row],[ 1-6]]&База[[#This Row],[№ действия]] -> Событие5№6действие9 | L16: =AND(VLOOKUP(База[[#This Row],[Уник]],Уникальные[],2,FALSE)<>0,VLOOKUP(База[[#This Row],[Уник]],Уникальные[],3,FALSE)<>0) ->  | M16: =VLOOKUP(База[[#This Row],[Уник]],Уникальные[],2,FALSE) ->  | N16: =VLOOKUP(База[[#This Row],[Уник]],Уникальные[],3,FALSE) -> 
A17: 2016-03-14T01:32:59 | B17: =MOD(База[[#This Row],[От]],1) -> 01:32:59 | C17: 2016-03-14T18:43:57 | D17: =MOD(База[[#This Row],[До]],1) -> 18:43:57 | E17: Событие6 | F17: №5 | G17: действие10 | I17: 1 | J17: 7 | K17: =База[[#This Row],[№ события]]&База[[#This Row],[ 1-6]]&База[[#This Row],[№ действия]] -> Событие6№5действие10 | L17: =AND(VLOOKUP(База[[#This Row],[Уник]],Уникальные[],2,FALSE)<>0,VLOOKUP(База[[#This Row],[Уник]],Уникальные[],3,FALSE)<>0) ->  | M17: =VLOOKUP(База[[#This Row],[Уник]],Уникальные[],2,FALSE) ->  | N17: =VLOOKUP(База[[#This Row],[Уник]],Уникальные[],3,FALSE) -> 
A18: 2016-03-14T01:35:36 | B18: =MOD(База[[#This Row],[От]],1) -> 01:35:36 | C18: 2016-03-14T19:38:24 | D18: =MOD(База[[#This Row],[До]],1) -> 19:38:24 | E18: Событие7 | F18: №6 | G18: действие11 | I18: 1 | J18: 9 | K18: =База[[#This Row],[№ события]]&База[[#This Row],[ 1-6]]&База[[#This Row],[№ действия]] -> Событие7№6действие11 | L18: =AND(VLOOKUP(База[[#This Row],[Уник]],Уникальные[],2,FALSE)<>0,VLOOKUP(База[[#This Row],[Уник]],Уникальные[],3,FALSE)<>0) ->  | M18: =VLOOKUP(База[[#This Row],[Уник]],Уникальные[],2,FALSE) ->  | N18: =VLOOKUP(База[[#This Row],[Уник]],Уникальные[],3,FALSE) -> 
A19: 2016-03-14T01:36:04 | B19: =MOD(База[[#This Row],[От]],1) -> 01:36:04 | C19: 2016-03-14T19:38:51 | D19: =MOD(База[[#This Row],[До]],1) -> 19:38:51 | E19: Событие8 | F19: №1 | G19: действие12 | I19: 0.42 | J19: 10 | K19: =База[[#This Row],[№ события]]&База[[#This Row],[ 1-6]]&База[[#This Row],[№ действия]] -> Событие8№1действие12 | L19: =AND(VLOOKUP(База[[#This Row],[Уник]],Уникальные[],2,FALSE)<>0,VLOOKUP(База[[#This Row],[Уник]],Уникальные[],3,FALSE)<>0) ->  | M19: =VLOOKUP(База[[#This Row],[Уник]],Уникальные[],2,FALSE) ->  | N19: =VLOOKUP(База[[#This Row],[Уник]],Уникальные[],3,FALSE) -> 
A20: 2016-03-14T01:36:36 | B20: =MOD(База[[#This Row],[От]],1) -> 01:36:36 | C20: 2016-03-14T06:18:23 | D20: =MOD(База[[#This Row],[До]],1) -> 06:18:23 | E20: Событие9 | F20: №1 | G20: действие13 | I20: 0.82 | J20: 18 | K20: =База[[#This Row],[№ события]]&База[[#This Row],[ 1-6]]&База[[#This Row],[№ действия]] -> Событие9№1действие13 | L20: =AND(VLOOKUP(База[[#This Row],[Уник]],Уникальные[],2,FALSE)<>0,VLOOKUP(База[[#This Row],[Уник]],Уникальные[],3,FALSE)<>0) ->  | M20: =VLOOKUP(База[[#This Row],[Уник]],Уникальные[],2,FALSE) ->  | N20: =VLOOKUP(База[[#This Row],[Уник]],Уникальные[],3,FALSE) -> 
A21: 2016-03-14T01:36:49 | B21: =MOD(База[[#This Row],[От]],1) -> 01:36:49 | C21: 2016-03-14T11:51:08 | D21: =MOD(База[[#This Row],[До]],1) -> 11:51:08 | E21: Событие9 | F21: №6 | G21: действие14 | I21: 0.45 | J21: 11 | K21: =База[[#This Row],[№ события]]&База[[#This Row],[ 1-6]]&База[[#This Row],[№ действия]] -> Событие9№6действие14 | L21: =AND(VLOOKUP(База[[#This Row],[Уник]],Уникальные[],2,FALSE)<>0,VLOOKUP(База[[#This Row],[Уник]],Уникальные[],3,FALSE)<>0) ->  | M21: =VLOOKUP(База[[#This Row],[Уник]],Уникальные[],2,FALSE) ->  | N21: =VLOOKUP(База[[#This Row],[Уник]],Уникальные[],3,FALSE) -> 
A22: 2016-03-14T01:37:22 | B22: =MOD(База[[#This Row],[От]],1) -> 01:37:22 | C22: 2016-03-14T16:16:06 | D22: =MOD(База[[#This Row],[До]],1) -> 16:16:06 | E22: Событие10 | F22: №6 | G22: действие15 | I22: 0.5 | J22: 16 | K22: =База[[#This Row],[№ события]]&База[[#This Row],[ 1-6]]&База[[#This Row],[№ действия]] -> Событие10№6действие15 | L22: =AND(VLOOKUP(База[[#This Row],[Уник]],Уникальные[],2,FALSE)<>0,VLOOKUP(База[[#This Row],[Уник]],Уникальные[],3,FALSE)<>0) ->  | M22: =VLOOKUP(База[[#This Row],[Уник]],Уникальные[],2,FALSE) ->  | N22: =VLOOKUP(База[[#This Row],[Уник]],Уникальные[],3,FALSE) -> 
A23: 2016-03-14T01:38:34 | B23: =MOD(База[[#This Row],[От]],1) -> 01:38:34 | C23: 2016-03-14T01:38:34 | D23: =MOD(База[[#This Row],[До]],1) -> 01:38:34 | E23: Событие11 | F23: №6 | G23: действие16 | I23: 0.38 | J23: 22 | K23: =База[[#This Row],[№ события]]&База[[#This Row],[ 1-6]]&База[[#This Row],[№ действия]] -> Событие11№6действие16 | L23: =AND(VLOOKUP(База[[#This Row],[Уник]],Уникальные[],2,FALSE)<>0,VLOOKUP(База[[#This Row],[Уник]],Уникальные[],3,FALSE)<>0) ->  | M23: =VLOOKUP(База[[#This Row],[Уник]],Уникальные[],2,FALSE) ->  | N23: =VLOOKUP(База[[#This Row],[Уник]],Уникальные[],3,FALSE) -> 
A24: 2016-03-14T01:39:38 | B24: =MOD(База[[#This Row],[От]],1) -> 01:39:38 | C24: 2016-03-14T16:17:03 | D24: =MOD(База[[#This Row],[До]],1) -> 16:17:03 | E24: Событие12 | F24: №1 | G24: действие17 | I24: 0.65 | J24: 21 | K24: =База[[#This Row],[№ события]]&База[[#This Row],[ 1-6]]&База[[#This Row],[№ действия]] -> Событие12№1действие17 | L24: =AND(VLOOKUP(База[[#This Row],[Уник]],Уникальные[],2,FALSE)<>0,VLOOKUP(База[[#This Row],[Уник]],Уникальные[],3,FALSE)<>0) ->  | M24: =VLOOKUP(База[[#This Row],[Уник]],Уникальные[],2,FALSE) ->  | N24: =VLOOKUP(База[[#This Row],[Уник]],Уникальные[],3,FALSE) -> 
A25: 2016-03-14T01:39:48 | B25: =MOD(База[[#This Row],[От]],1) -> 01:39:48 | C25: 2016-03-14T11:07:48 | D25: =MOD(База[[#This Row],[До]],1) -> 11:07:48 | E25: Событие12 | F25: №6 | G25: действие18 | I25: 0.55 | J25: 19 | K25: =База[[#This Row],[№ события]]&База[[#This Row],[ 1-6]]&База[[#This Row],[№ действия]] -> Событие12№6действие18 | L25: =AND(VLOOKUP(База[[#This Row],[Уник]],Уникальные[],2,FALSE)<>0,VLOOKUP(База[[#This Row],[Уник]],Уникальные[],3,FALSE)<>0) ->  | M25: =VLOOKUP(База[[#This Row],[Уник]],Уникальные[],2,FALSE) ->  | N25: =VLOOKUP(База[[#This Row],[Уник]],Уникальные[],3,FALSE) -> 
A26: 2016-03-14T01:40:17 | B26: =MOD(База[[#This Row],[От]],1) -> 01:40:17 | C26: 2016-03-14T16:17:43 | D26: =MOD(База[[#This Row],[До]],1) -> 16:17:43 | E26: Событие13 | F26: №3 | G26: действие19 | I26: 0.76 | J26: 8 | K26: =База[[#This Row],[№ события]]&База[[#This Row],[ 1-6]]&База[[#This Row],[№ действия]] -> Событие13№3действие19 | L26: =AND(VLOOKUP(База[[#This Row],[Уник]],Уникальные[],2,FALSE)<>0,VLOOKUP(База[[#This Row],[Уник]],Уникальные[],3,FALSE)<>0) ->  | M26: =VLOOKUP(База[[#This Row],[Уник]],Уникальные[],2,FALSE) ->  | N26: =VLOOKUP(База[[#This Row],[Уник]],Уникальные[],3,FALSE) -> 
A27: 2016-03-14T01:40:57 | B27: =MOD(База[[#This Row],[От]],1) -> 01:40:57 | C27: 2016-03-14T15:33:05 | D27: =MOD(База[[#This Row],[До]],1) -> 15:33:05 | E27: Событие14 | F27: №1 | G27: действие20 | I27: 0.42 | J27: 10 | K27: =База[[#This Row],[№ события]]&База[[#This Row],[ 1-6]]&База[[#This Row],[№ действия]] -> Событие14№1действие20 | L27: =AND(VLOOKUP(База[[#This Row],[Уник]],Уникальные[],2,FALSE)<>0,VLOOKUP(База[[#This Row],[Уник]],Уникальные[],3,FALSE)<>0) ->  | M27: =VLOOKUP(База[[#This Row],[Уник]],Уникальные[],2,FALSE) ->  | N27: =VLOOKUP(База[[#This Row],[Уник]],Уникальные[],3,FALSE) -> 
A28: 2016-03-14T01:41:16 | B28: =MOD(База[[#This Row],[От]],1) -> 01:41:16 | C28: 2016-03-14T01:41:16 | D28: =MOD(База[[#This Row],[До]],1) -> 01:41:16 | E28: Событие14 | F28: №6 | G28: действие13 | I28: 0.86 | J28: 7 | K28: =База[[#This Row],[№ события]]&База[[#This Row],[ 1-6]]&База[[#This Row],[№ действия]] -> Событие14№6действие13 | L28: =AND(VLOOKUP(База[[#This Row],[Уник]],Уникальные[],2,FALSE)<>0,VLOOKUP(База[[#This Row],[Уник]],Уникальные[],3,FALSE)<>0) ->  | M28: =VLOOKUP(База[[#This Row],[Уник]],Уникальные[],2,FALSE) ->  | N28: =VLOOKUP(База[[#This Row],[Уник]],Уникальные[],3,FALSE) -> 
A29: 2016-03-14T01:42:05 | B29: =MOD(База[[#This Row],[От]],1) -> 01:42:05 | C29: 2016-03-14T01:42:05 | D29: =MOD(База[[#This Row],[До]],1) -> 01:42:05 | E29: Событие15 | F29: №4 | G29: действие21 | I29: 0.47 | J29: 25 | K29: =База[[#This Row],[№ события]]&База[[#This Row],[ 1-6]]&База[[#This Row],[№ действия]] -> Событие15№4действие21 | L29: =AND(VLOOKUP(База[[#This Row],[Уник]],Уникальные[],2,FALSE)<>0,VLOOKUP(База[[#This Row],[Уник]],Уникальные[],3,FALSE)<>0) ->  | M29: =VLOOKUP(База[[#This Row],[Уник]],Уникальные[],2,FALSE) ->  | N29: =VLOOKUP(База[[#This Row],[Уник]],Уникальные[],3,FALSE) -> 
A30: 2016-03-14T01:42:17 | B30: =MOD(База[[#This Row],[От]],1) -> 01:42:17 | C30: 2016-03-14T01:42:17 | D30: =MOD(База[[#This Row],[До]],1) -> 01:42:17 | E30: Событие15 | F30: №5 | G30: действие11 | I30: 0.52 | J30: 16 | K30: =База[[#This Row],[№ события]]&База[[#This Row],[ 1-6]]&База[[#This Row],[№ действия]] -> Событие15№5действие11 | L30: =AND(VLOOKUP(База[[#This Row],[Уник]],Уникальные[],2,FALSE)<>0,VLOOKUP(База[[#This Row],[Уник]],Уникальные[],3,FALSE)<>0) ->  | M30: =VLOOKUP(База[[#This Row],[Уник]],Уникальные[],2,FALSE) ->  | N30: =VLOOKUP(База[[#This Row],[Уник]],Уникальные[],3,FALSE) -> 
A31: 2016-03-14T01:42:47 | B31: =MOD(База[[#This Row],[От]],1) -> 01:42:47 | C31: 2016-03-14T01:42:47 | D31: =MOD(База[[#This Row],[До]],1) -> 01:42:47 | E31: Событие16 | F31: №5 | G31: действие22 | I31: 1 | J31: 7 | K31: =База[[#This Row],[№ события]]&База[[#This Row],[ 1-6]]&База[[#This Row],[№ действия]] -> Событие16№5действие22 | L31: =AND(VLOOKUP(База[[#This Row],[Уник]],Уникальные[],2,FALSE)<>0,VLOOKUP(База[[#This Row],[Уник]],Уникальные[],3,FALSE)<>0) ->  | M31: =VLOOKUP(База[[#This Row],[Уник]],Уникальные[],2,FALSE) ->  | N31: =VLOOKUP(База[[#This Row],[Уник]],Уникальные[],3,FALSE) -> 
A32: 2016-03-14T01:43:38 | B32: =MOD(База[[#This Row],[От]],1) -> 01:43:38 | C32: 2016-03-14T15:35:01 | D32: =MOD(База[[#This Row],[До]],1) -> 15:35:01 | E32: Событие17 | F32: №3 | G32: действие23 | I32: 1 | J32: 17 | K32: =База[[#This Row],[№ события]]&База[[#This Row],[ 1-6]]&База[[#This Row],[№ действия]] -> Событие17№3действие23 | L32: =AND(VLOOKUP(База[[#This Row],[Уник]],Уникальные[],2,FALSE)<>0,VLOOKUP(База[[#This Row],[Уник]],Уникальные[],3,FALSE)<>0) ->  | M32: =VLOOKUP(База[[#This Row],[Уник]],Уникальные[],2,FALSE) ->  | N32: =VLOOKUP(База[[#This Row],[Уник]],Уникальные[],3,FALSE) -> 
A33: 2016-03-14T01:44:55 | B33: =MOD(База[[#This Row],[От]],1) -> 01:44:55 | C33: 2016-03-14T19:36:29 | D33: =MOD(База[[#This Row],[До]],1) -> 19:36:29 | E33: Событие18 | F33: №5 | G33: действие24 | I33: 0.31 | J33: 8 | K33: =База[[#This Row],[№ события]]&База[[#This Row],[ 1-6]]&База[[#This Row],[№ действия]] -> Событие18№5действие24 | L33: =AND(VLOOKUP(База[[#This Row],[Уник]],Уникальные[],2,FALSE)<>0,VLOOKUP(База[[#This Row],[Уник]],Уникальные[],3,FALSE)<>0) ->  | M33: =VLOOKUP(База[[#This Row],[Уник]],Уникальные[],2,FALSE) ->  | N33: =VLOOKUP(База[[#This Row],[Уник]],Уникальные[],3,FALSE) -> 
A34: 2016-03-14T01:45:02 | B34: =MOD(База[[#This Row],[От]],1) -> 01:45:02 | C34: 2016-03-14T18:51:34 | D34: =MOD(База[[#This Row],[До]],1) -> 18:51:34 | E34: Событие18 | F34: №6 | G34: действие25 | I34: 0.37 | J34: 7 | K34: =База[[#This Row],[№ события]]&База[[#This Row],[ 1-6]]&База[[#This Row],[№ действия]] -> Событие18№6действие25 | L34: =AND(VLOOKUP(База[[#This Row],[Уник]],Уникальные[],2,FALSE)<>0,VLOOKUP(База[[#This Row],[Уник]],Уникальные[],3,FALSE)<>0) ->  | M34: =VLOOKUP(База[[#This Row],[Уник]],Уникальные[],2,FALSE) ->  | N34: =VLOOKUP(База[[#This Row],[Уник]],Уникальные[],3,FALSE) -> 
A35: 2016-03-14T01:45:32 | B35: =MOD(База[[#This Row],[От]],1) -> 01:45:32 | C35: 2016-03-14T09:39:35 | D35: =MOD(База[[#This Row],[До]],1) -> 09:39:35 | E35: Событие19 | F35: №3 | G35: действие26 | I35: 0.56 | J35: 23 | K35: =База[[#This Row],[№ события]]&База[[#This Row],[ 1-6]]&База[[#This Row],[№ действия]] -> Событие19№3действие26 | L35: =AND(VLOOKUP(База[[#This Row],[Уник]],Уникальные[],2,FALSE)<>0,VLOOKUP(База[[#This Row],[Уник]],Уникальные[],3,FALSE)<>0) ->  | M35: =VLOOKUP(База[[#This Row],[Уник]],Уникальные[],2,FALSE) ->  | N35: =VLOOKUP(База[[#This Row],[Уник]],Уникальные[],3,FALSE) -> 
A36: 2016-03-14T01:45:43 | B36: =MOD(База[[#This Row],[От]],1) -> 01:45:43 | C36: 2016-03-14T19:37:10 | D36: =MOD(База[[#This Row],[До]],1) -> 19:37:10 | E36: Событие19 | F36: №6 | G36: действие27 | I36: 0.72 | J36: 7 | K36: =База[[#This Row],[№ события]]&База[[#This Row],[ 1-6]]&База[[#This Row],[№ действия]] -> Событие19№6действие27 | L36: =AND(VLOOKUP(База[[#This Row],[Уник]],Уникальные[],2,FALSE)<>0,VLOOKUP(База[[#This Row],[Уник]],Уникальные[],3,FALSE)<>0) ->  | M36: =VLOOKUP(База[[#This Row],[Уник]],Уникальные[],2,FALSE) ->  | N36: =VLOOKUP(База[[#This Row],[Уник]],Уникальные[],3,FALSE) -> 
A37: 2016-03-14T01:47:11 | B37: =MOD(База[[#This Row],[От]],1) -> 01:47:11 | C37: 2016-03-14T06:25:01 | D37: =MOD(База[[#This Row],[До]],1) -> 06:25:01 | E37: Событие20 | F37: №3 | G37: действие2 | I37: 0.52 | J37: 14 | K37: =База[[#This Row],[№ события]]&База[[#This Row],[ 1-6]]&База[[#This Row],[№ действия]] -> Событие20№3действие2 | L37: =AND(VLOOKUP(База[[#This Row],[Уник]],Уникальные[],2,FALSE)<>0,VLOOKUP(База[[#This Row],[Уник]],Уникальные[],3,FALSE)<>0) ->  | M37: =VLOOKUP(База[[#This Row],[Уник]],Уникальные[],2,FALSE) ->  | N37: =VLOOKUP(База[[#This Row],[Уник]],Уникальные[],3,FALSE) -> 
A38: 2016-03-14T01:47:20 | B38: =MOD(База[[#This Row],[От]],1) -> 01:47:20 | C38: 2016-03-14T19:37:45 | D38: =MOD(База[[#This Row],[До]],1) -> 19:37:45 | E38: Событие20 | F38: №6 | G38: действие16 | I38: 0.55 | J38: 22 | K38: =База[[#This Row],[№ события]]&База[[#This Row],[ 1-6]]&База[[#This Row],[№ действия]] -> Событие20№6действие16 | L38: =AND(VLOOKUP(База[[#This Row],[Уник]],Уникальные[],2,FALSE)<>0,VLOOKUP(База[[#This Row],[Уник]],Уникальные[],3,FALSE)<>0) ->  | M38: =VLOOKUP(База[[#This Row],[Уник]],Уникальные[],2,FALSE) ->  | N38: =VLOOKUP(База[[#This Row],[Уник]],Уникальные[],3,FALSE) -> 
A39: 2016-03-14T01:47:45 | B39: =MOD(База[[#This Row],[От]],1) -> 01:47:45 | C39: 2016-03-14T07:19:06 | D39: =MOD(База[[#This Row],[До]],1) -> 07:19:06 | E39: Событие21 | F39: №6 | G39: действие28 | I39: 0.58 | J39: 20 | K39: =База[[#This Row],[№ события]]&База[[#This Row],[ 1-6]]&База[[#This Row],[№ действия]] -> Событие21№6действие28 | L39: =AND(VLOOKUP(База[[#This Row],[Уник]],Уникальные[],2,FALSE)<>0,VLOOKUP(База[[#This Row],[Уник]],Уникальные[],3,FALSE)<>0) ->  | M39: =VLOOKUP(База[[#This Row],[Уник]],Уникальные[],2,FALSE) ->  | N39: =VLOOKUP(База[[#This Row],[Уник]],Уникальные[],3,FALSE) -> 
A40: 2016-03-14T01:48:12 | B40: =MOD(База[[#This Row],[От]],1) -> 01:48:12 | C40: 2016-03-14T15:37:54 | D40: =MOD(База[[#This Row],[До]],1) -> 15:37:54 | E40: Событие22 | F40: №3 | G40: действие29 | I40: 0.38 | J40: 29 | K40: =База[[#This Row],[№ события]]&База[[#This Row],[ 1-6]]&База[[#This Row],[№ действия]] -> Событие22№3действие29 | L40: =AND(VLOOKUP(База[[#This Row],[Уник]],Уникальные[],2,FALSE)<>0,VLOOKUP(База[[#This Row],[Уник]],Уникальные[],3,FALSE)<>0) ->  | M40: =VLOOKUP(База[[#This Row],[Уник]],Уникальные[],2,FALSE) ->  | N40: =VLOOKUP(База[[#This Row],[Уник]],Уникальные[],3,FALSE) -> 
A41: 2016-03-14T01:48:20 | B41: =MOD(База[[#This Row],[От]],1) -> 01:48:20 | C41: 2016-03-14T16:22:39 | D41: =MOD(База[[#This Row],[До]],1) -> 16:22:39 | E41: Событие22 | F41: №4 | G41: действие30 | I41: 0.51 | J41: 19 | K41: =База[[#This Row],[№ события]]&База[[#This Row],[ 1-6]]&База[[#This Row],[№ действия]] -> Событие22№4действие30 | L41: =AND(VLOOKUP(База[[#This Row],[Уник]],Уникальные[],2,FALSE)<>0,VLOOKUP(База[[#This Row],[Уник]],Уникальные[],3,FALSE)<>0) ->  | M41: =VLOOKUP(База[[#This Row],[Уник]],Уникальные[],2,FALSE) ->  | N41: =VLOOKUP(База[[#This Row],[Уник]],Уникальные[],3,FALSE) -> 
A42: 2016-03-14T01:48:28 | B42: =MOD(База[[#This Row],[От]],1) -> 01:48:28 | C42: 2016-03-14T06:26:21 | D42: =MOD(База[[#This Row],[До]],1) -> 06:26:21 | E42: Событие22 | F42: №5 | G42: действие31 | I42: 0.58 | J42: 7 | K42: =База[[#This Row],[№ события]]&База[[#This Row],[ 1-6]]&База[[#This Row],[№ действия]] -> Событие22№5действие31 | L42: =AND(VLOOKUP(База[[#This Row],[Уник]],Уникальные[],2,FALSE)<>0,VLOOKUP(База[[#This Row],[Уник]],Уникальные[],3,FALSE)<>0) ->  | M42: =VLOOKUP(База[[#This Row],[Уник]],Уникальные[],2,FALSE) ->  | N42: =VLOOKUP(База[[#This Row],[Уник]],Уникальные[],3,FALSE) -> 
A43: 2016-03-14T01:48:57 | B43: =MOD(База[[#This Row],[От]],1) -> 01:48:57 | C43: 2016-03-14T14:10:33 | D43: =MOD(База[[#This Row],[До]],1) -> 14:10:33 | E43: Событие23 | F43: №3 | G43: действие17 | I43: 0.65 | J43: 7 | K43: =База[[#This Row],[№ события]]&База[[#This Row],[ 1-6]]&База[[#This Row],[№ действия]] -> Событие23№3действие17 | L43: =AND(VLOOKUP(База[[#This Row],[Уник]],Уникальные[],2,FALSE)<>0,VLOOKUP(База[[#This Row],[Уник]],Уникальные[],3,FALSE)<>0) ->  | M43: =VLOOKUP(База[[#This Row],[Уник]],Уникальные[],2,FALSE) ->  | N43: =VLOOKUP(База[[#This Row],[Уник]],Уникальные[],3,FALSE) -> 
A44: 2016-03-14T01:49:05 | B44: =MOD(База[[#This Row],[От]],1) -> 01:49:05 | C44: 2016-03-14T19:39:40 | D44: =MOD(База[[#This Row],[До]],1) -> 19:39:40 | E44: Событие23 | F44: №4 | G44: действие32 | I44: 0.51 | J44: 7 | K44: =База[[#This Row],[№ события]]&База[[#This Row],[ 1-6]]&База[[#This Row],[№ действия]] -> Событие23№4действие32 | L44: =AND(VLOOKUP(База[[#This Row],[Уник]],Уникальные[],2,FALSE)<>0,VLOOKUP(База[[#This Row],[Уник]],Уникальные[],3,FALSE)<>0) ->  | M44: =VLOOKUP(База[[#This Row],[Уник]],Уникальные[],2,FALSE) ->  | N44: =VLOOKUP(База[[#This Row],[Уник]],Уникальные[],3,FALSE) -> 
A45: 2016-03-14T01:49:36 | B45: =MOD(База[[#This Row],[От]],1) -> 01:49:36 | C45: 2016-03-14T01:49:36 | D45: =MOD(База[[#This Row],[До]],1) -> 01:49:36 | E45: Событие24 | F45: №3 | G45: действие17 | I45: 0.65 | J45: 7 | K45: =База[[#This Row],[№ события]]&База[[#This Row],[ 1-6]]&База[[#This Row],[№ действия]] -> Событие24№3действие17 | L45: =AND(VLOOKUP(База[[#This Row],[Уник]],Уникальные[],2,FALSE)<>0,VLOOKUP(База[[#This Row],[Уник]],Уникальные[],3,FALSE)<>0) ->  | M45: =VLOOKUP(База[[#This Row],[Уник]],Уникальные[],2,FALSE) ->  | N45: =VLOOKUP(База[[#This Row],[Уник]],Уникальные[],3,FALSE) -> 
A46: 2016-03-14T01:49:44 | B46: =MOD(База[[#This Row],[От]],1) -> 01:49:44 | C46: 2016-03-14T01:49:44 | D46: =MOD(База[[#This Row],[До]],1) -> 01:49:44 | E46: Событие24 | F46: №4 | G46: действие32 | I46: 0.51 | J46: 7 | K46: =База[[#This Row],[№ события]]&База[[#This Row],[ 1-6]]&База[[#This Row],[№ действия]] -> Событие24№4действие32 | L46: =AND(VLOOKUP(База[[#This Row],[Уник]],Уникальные[],2,FALSE)<>0,VLOOKUP(База[[#This Row],[Уник]],Уникальные[],3,FALSE)<>0) ->  | M46: =VLOOKUP(База[[#This Row],[Уник]],Уникальные[],2,FALSE) ->  | N46: =VLOOKUP(База[[#This Row],[Уник]],Уникальные[],3,FALSE) -> 
A47: 2016-03-14T01:51:13 | B47: =MOD(База[[#This Row],[От]],1) -> 01:51:13 | C47: 2016-03-14T14:55:56 | D47: =MOD(База[[#This Row],[До]],1) -> 14:55:56 | E47: Событие25 | F47: №3 | G47: действие33 | I47: 0.42 | J47: 11 | K47: =База[[#This Row],[№ события]]&База[[#This Row],[ 1-6]]&База[[#This Row],[№ действия]] -> Событие25№3действие33 | L47: =AND(VLOOKUP(База[[#This Row],[Уник]],Уникальные[],2,FALSE)<>0,VLOOKUP(База[[#This Row],[Уник]],Уникальные[],3,FALSE)<>0) ->  | M47: =VLOOKUP(База[[#This Row],[Уник]],Уникальные[],2,FALSE) ->  | N47: =VLOOKUP(База[[#This Row],[Уник]],Уникальные[],3,FALSE) -> 
A48: 2016-03-14T01:51:22 | B48: =MOD(База[[#This Row],[От]],1) -> 01:51:22 | C48: 2016-03-14T07:14:54 | D48: =MOD(База[[#This Row],[До]],1) -> 07:14:54 | E48: Событие25 | F48: №4 | G48: действие20 | I48: 0.79 | J48: 7 | K48: =База[[#This Row],[№ события]]&База[[#This Row],[ 1-6]]&База[[#This Row],[№ действия]] -> Событие25№4действие20 | L48: =AND(VLOOKUP(База[[#This Row],[Уник]],Уникальные[],2,FALSE)<>0,VLOOKUP(База[[#This Row],[Уник]],Уникальные[],3,FALSE)<>0) ->  | M48: =VLOOKUP(База[[#This Row],[Уник]],Уникальные[],2,FALSE) ->  | N48: =VLOOKUP(База[[#This Row],[Уник]],Уникальные[],3,FALSE) -> 
A49: 2016-03-14T01:52:48 | B49: =MOD(База[[#This Row],[От]],1) -> 01:52:48 | C49: 2016-03-14T19:41:27 | D49: =MOD(База[[#This Row],[До]],1) -> 19:41:27 | E49: Событие26 | F49: №1 | G49: действие34 | I49: 0.39 | J49: 8 | K49: =База[[#This Row],[№ события]]&База[[#This Row],[ 1-6]]&База[[#This Row],[№ действия]] -> Событие26№1действие34 | L49: =AND(VLOOKUP(База[[#This Row],[Уник]],Уникальные[],2,FALSE)<>0,VLOOKUP(База[[#This Row],[Уник]],Уникальные[],3,FALSE)<>0) ->  | M49: =VLOOKUP(База[[#This Row],[Уник]],Уникальные[],2,FALSE) ->  | N49: =VLOOKUP(База[[#This Row],[Уник]],Уникальные[],3,FALSE) -> 
A50: 2016-03-14T01:53:21 | B50: =MOD(База[[#This Row],[От]],1) -> 01:53:21 | C50: 2016-03-14T16:25:35 | D50: =MOD(База[[#This Row],[До]],1) -> 16:25:35 | E50: Событие27 | F50: №1 | G50: действие35 | I50: 0.4 | J50: 9 | K50: =База[[#This Row],[№ события]]&База[[#This Row],[ 1-6]]&База[[#This Row],[№ действия]] -> Событие27№1действие35 | L50: =AND(VLOOKUP(База[[#This Row],[Уник]],Уникальные[],2,FALSE)<>0,VLOOKUP(База[[#This Row],[Уник]],Уникальные[],3,FALSE)<>0) ->  | M50: =VLOOKUP(База[[#This Row],[Уник]],Уникальные[],2,FALSE) ->  | N50: =VLOOKUP(База[[#This Row],[Уник]],Уникальные[],3,FALSE) -> 
A51: 2016-03-14T01:53:51 | B51: =MOD(База[[#This Row],[От]],1) -> 01:53:51 | C51: 2016-03-14T01:53:51 | D51: =MOD(База[[#This Row],[До]],1) -> 01:53:51 | E51: Событие27 | F51: №6 | G51: действие6 | I51: 0.58 | J51: 7 | K51: =База[[#This Row],[№ события]]&База[[#This Row],[ 1-6]]&База[[#This Row],[№ действия]] -> Событие27№6действие6 | L51: =AND(VLOOKUP(База[[#This Row],[Уник]],Уникальные[],2,FALSE)<>0,VLOOKUP(База[[#This Row],[Уник]],Уникальные[],3,FALSE)<>0) ->  | M51: =VLOOKUP(База[[#This Row],[Уник]],Уникальные[],2,FALSE) ->  | N51: =VLOOKUP(База[[#This Row],[Уник]],Уникальные[],3,FALSE) -> 
A52: 2016-03-14T01:54:19 | B52: =MOD(База[[#This Row],[От]],1) -> 01:54:19 | C52: 2016-03-14T19:42:37 | D52: =MOD(База[[#This Row],[До]],1) -> 19:42:37 | E52: Событие28 | F52: №3 | G52: действие30 | I52: 0.47 | J52: 11 | K52: =База[[#This Row],[№ события]]&База[[#This Row],[ 1-6]]&База[[#This Row],[№ действия]] -> Событие28№3действие30 | L52: =AND(VLOOKUP(База[[#This Row],[Уник]],Уникальные[],2,FALSE)<>0,VLOOKUP(База[[#This Row],[Уник]],Уникальные[],3,FALSE)<>0) ->  | M52: =VLOOKUP(База[[#This Row],[Уник]],Уникальные[],2,FALSE) ->  | N52: =VLOOKUP(База[[#This Row],[Уник]],Уникальные[],3,FALSE) -> 
A53: 2016-03-14T01:55:57 | B53: =MOD(База[[#This Row],[От]],1) -> 01:55:57 | C53: 2016-03-14T01:55:57 | D53: =MOD(База[[#This Row],[До]],1) -> 01:55:57 | E53: Событие29 | F53: №1 | G53: действие36 | I53: 0.78 | J53: 11 | K53: =База[[#This Row],[№ события]]&База[[#This Row],[ 1-6]]&База[[#This Row],[№ действия]] -> Событие29№1действие36 | L53: =AND(VLOOKUP(База[[#This Row],[Уник]],Уникальные[],2,FALSE)<>0,VLOOKUP(База[[#This Row],[Уник]],Уникальные[],3,FALSE)<>0) ->  | M53: =VLOOKUP(База[[#This Row],[Уник]],Уникальные[],2,FALSE) ->  | N53: =VLOOKUP(База[[#This Row],[Уник]],Уникальные[],3,FALSE) -> 
A54: 2016-03-14T01:56:05 | B54: =MOD(База[[#This Row],[От]],1) -> 01:56:05 | C54: 2016-03-14T19:43:26 | D54: =MOD(База[[#This Row],[До]],1) -> 19:43:26 | E54: Событие29 | F54: №2 | G54: действие18 | I54: 0.52 | J54: 17 | K54: =База[[#This Row],[№ события]]&База[[#This Row],[ 1-6]]&База[[#This Row],[№ действия]] -> Событие29№2действие18 | L54: =AND(VLOOKUP(База[[#This Row],[Уник]],Уникальные[],2,FALSE)<>0,VLOOKUP(База[[#This Row],[Уник]],Уникальные[],3,FALSE)<>0) ->  | M54: =VLOOKUP(База[[#This Row],[Уник]],Уникальные[],2,FALSE) ->  | N54: =VLOOKUP(База[[#This Row],[Уник]],Уникальные[],3,FALSE) -> 
A55: 2016-03-14T01:56:12 | B55: =MOD(База[[#This Row],[От]],1) -> 01:56:12 | C55: 2016-03-14T01:56:12 | D55: =MOD(База[[#This Row],[До]],1) -> 01:56:12 | E55: Событие29 | F55: №6 | G55: действие37 | I55: 0.55 | J55: 22 | K55: =База[[#This Row],[№ события]]&База[[#This Row],[ 1-6]]&База[[#This Row],[№ действия]] -> Событие29№6действие37 | L55: =AND(VLOOKUP(База[[#This Row],[Уник]],Уникальные[],2,FALSE)<>0,VLOOKUP(База[[#This Row],[Уник]],Уникальные[],3,FALSE)<>0) ->  | M55: =VLOOKUP(База[[#This Row],[Уник]],Уникальные[],2,FALSE) ->  | N55: =VLOOKUP(База[[#This Row],[Уник]],Уникальные[],3,FALSE) -> 
A56: 2016-03-14T01:56:38 | B56: =MOD(База[[#This Row],[От]],1) -> 01:56:38 | C56: 2016-03-14T01:56:38 | D56: =MOD(База[[#This Row],[До]],1) -> 01:56:38 | E56: Событие30 | F56: №5 | G56: действие36 | I56: 0.31 | J56: 26 | K56: =База[[#This Row],[№ события]]&База[[#This Row],[ 1-6]]&База[[#This Row],[№ действия]] -> Событие30№5действие36 | L56: =AND(VLOOKUP(База[[#This Row],[Уник]],Уникальные[],2,FALSE)<>0,VLOOKUP(База[[#This Row],[Уник]],Уникальные[],3,FALSE)<>0) ->  | M56: =VLOOKUP(База[[#This Row],[Уник]],Уникальные[],2,FALSE) ->  | N56: =VLOOKUP(База[[#This Row],[Уник]],Уникальные[],3,FALSE) -> 
A57: 2016-03-14T01:56:46 | B57: =MOD(База[[#This Row],[От]],1) -> 01:56:46 | C57: 2016-03-14T01:56:46 | D57: =MOD(База[[#This Row],[До]],1) -> 01:56:46 | E57: Событие30 | F57: №6 | G57: действие38 | I57: 0.57 | J57: 26 | K57: =База[[#This Row],[№ события]]&База[[#This Row],[ 1-6]]&База[[#This Row],[№ действия]] -> Событие30№6действие38 | L57: =AND(VLOOKUP(База[[#This Row],[Уник]],Уникальные[],2,FALSE)<>0,VLOOKUP(База[[#This Row],[Уник]],Уникальные[],3,FALSE)<>0) ->  | M57: =VLOOKUP(База[[#This Row],[Уник]],Уникальные[],2,FALSE) ->  | N57: =VLOOKUP(База[[#This Row],[Уник]],Уникальные[],3,FALSE) -> 
A58: 2016-03-14T01:57:14 | B58: =MOD(База[[#This Row],[От]],1) -> 01:57:14 | C58: 2016-03-14T08:06:31 | D58: =MOD(База[[#This Row],[До]],1) -> 08:06:31 | E58: Событие31 | F58: №2 | G58: действие39 | I58: 0.86 | J58: 7 | K58: =База[[#This Row],[№ события]]&База[[#This Row],[ 1-6]]&База[[#This Row],[№ действия]] -> Событие31№2действие39 | L58: =AND(VLOOKUP(База[[#This Row],[Уник]],Уникальные[],2,FALSE)<>0,VLOOKUP(База[[#This Row],[Уник]],Уникальные[],3,FALSE)<>0) ->  | M58: =VLOOKUP(База[[#This Row],[Уник]],Уникальные[],2,FALSE) ->  | N58: =VLOOKUP(База[[#This Row],[Уник]],Уникальные[],3,FALSE) -> 
A59: 2016-03-14T01:57:23 | B59: =MOD(База[[#This Row],[От]],1) -> 01:57:23 | C59: 2016-03-14T19:44:47 | D59: =MOD(База[[#This Row],[До]],1) -> 19:44:47 | E59: Событие31 | F59: №4 | G59: действие40 | I59: 0.58 | J59: 7 | K59: =База[[#This Row],[№ события]]&База[[#This Row],[ 1-6]]&База[[#This Row],[№ действия]] -> Событие31№4действие40 | L59: =AND(VLOOKUP(База[[#This Row],[Уник]],Уникальные[],2,FALSE)<>0,VLOOKUP(База[[#This Row],[Уник]],Уникальные[],3,FALSE)<>0) ->  | M59: =VLOOKUP(База[[#This Row],[Уник]],Уникальные[],2,FALSE) ->  | N59: =VLOOKUP(База[[#This Row],[Уник]],Уникальные[],3,FALSE) -> 
A60: 2016-03-14T01:58:09 | B60: =MOD(База[[#This Row],[От]],1) -> 01:58:09 | C60: 2016-03-14T19:45:15 | D60: =MOD(База[[#This Row],[До]],1) -> 19:45:15 | E60: Событие32 | F60: №3 | G60: действие29 | I60: 0.64 | J60: 12 | K60: =База[[#This Row],[№ события]]&База[[#This Row],[ 1-6]]&База[[#This Row],[№ действия]] -> Событие32№3действие29 | L60: =AND(VLOOKUP(База[[#This Row],[Уник]],Уникальные[],2,FALSE)<>0,VLOOKUP(База[[#This Row],[Уник]],Уникальные[],3,FALSE)<>0) ->  | M60: =VLOOKUP(База[[#This Row],[Уник]],Уникальные[],2,FALSE) ->  | N60: =VLOOKUP(База[[#This Row],[Уник]],Уникальные[],3,FALSE) -> 
A61: 2016-03-14T01:58:18 | B61: =MOD(База[[#This Row],[От]],1) -> 01:58:18 | C61: 2016-03-14T19:45:25 | D61: =MOD(База[[#This Row],[До]],1) -> 19:45:25 | E61: Событие32 | F61: №5 | G61: действие13 | I61: 0.79 | J61: 7 | K61: =База[[#This Row],[№ события]]&База[[#This Row],[ 1-6]]&База[[#This Row],[№ действия]] -> Событие32№5действие13 | L61: =AND(VLOOKUP(База[[#This Row],[Уник]],Уникальные[],2,FALSE)<>0,VLOOKUP(База[[#This Row],[Уник]],Уникальные[],3,FALSE)<>0) ->  | M61: =VLOOKUP(База[[#This Row],[Уник]],Уникальные[],2,FALSE) ->  | N61: =VLOOKUP(База[[#This Row],[Уник]],Уникальные[],3,FALSE) -> 
A62: 2016-03-14T01:58:43 | B62: =MOD(База[[#This Row],[От]],1) -> 01:58:43 | C62: 2016-03-14T19:45:53 | D62: =MOD(База[[#This Row],[До]],1) -> 19:45:53 | E62: Событие33 | F62: №1 | G62: действие41 | I62: 0.56 | J62: 19 | K62: =База[[#This Row],[№ события]]&База[[#This Row],[ 1-6]]&База[[#This Row],[№ действия]] -> Событие33№1действие41 | L62: =AND(VLOOKUP(База[[#This Row],[Уник]],Уникальные[],2,FALSE)<>0,VLOOKUP(База[[#This Row],[Уник]],Уникальные[],3,FALSE)<>0) ->  | M62: =VLOOKUP(База[[#This Row],[Уник]],Уникальные[],2,FALSE) ->  | N62: =VLOOKUP(База[[#This Row],[Уник]],Уникальные[],3,FALSE) -> 
A63: 2016-03-14T01:58:59 | B63: =MOD(База[[#This Row],[От]],1) -> 01:58:59 | C63: 2016-03-14T19:46:06 | D63: =MOD(База[[#This Row],[До]],1) -> 19:46:06 | E63: Событие33 | F63: №4 | G63: действие42 | I63: 0.63 | J63: 25 | K63: =База[[#This Row],[№ события]]&База[[#This Row],[ 1-6]]&База[[#This Row],[№ действия]] -> Событие33№4действие42 | L63: =AND(VLOOKUP(База[[#This Row],[Уник]],Уникальные[],2,FALSE)<>0,VLOOKUP(База[[#This Row],[Уник]],Уникальные[],3,FALSE)<>0) ->  | M63: =VLOOKUP(База[[#This Row],[Уник]],Уникальные[],2,FALSE) ->  | N63: =VLOOKUP(База[[#This Row],[Уник]],Уникальные[],3,FALSE) -> 
A64: 2016-03-14T01:59:32 | B64: =MOD(База[[#This Row],[От]],1) -> 01:59:32 | C64: 2016-03-14T19:46:43 | D64: =MOD(База[[#This Row],[До]],1) -> 19:46:43 | E64: Событие34 | F64: №1 | G64: действие34 | I64: 0.93 | J64: 7 | K64: =База[[#This Row],[№ события]]&База[[#This Row],[ 1-6]]&База[[#This Row],[№ действия]] -> Событие34№1действие34 | L64: =AND(VLOOKUP(База[[#This Row],[Уник]],Уникальные[],2,FALSE)<>0,VLOOKUP(База[[#This Row],[Уник]],Уникальные[],3,FALSE)<>0) ->  | M64: =VLOOKUP(База[[#This Row],[Уник]],Уникальные[],2,FALSE) ->  | N64: =VLOOKUP(База[[#This Row],[Уник]],Уникальные[],3,FALSE) -> 
A65: 2016-03-14T02:01:13 | B65: =MOD(База[[#This Row],[От]],1) -> 02:01:13 | C65: 2016-03-14T02:01:13 | D65: =MOD(База[[#This Row],[До]],1) -> 02:01:13 | E65: Событие35 | F65: №5 | G65: действие43 | I65: 0.33 | J65: 16 | K65: =База[[#This Row],[№ события]]&База[[#This Row],[ 1-6]]&База[[#This Row],[№ действия]] -> Событие35№5действие43 | L65: =AND(VLOOKUP(База[[#This Row],[Уник]],Уникальные[],2,FALSE)<>0,VLOOKUP(База[[#This Row],[Уник]],Уникальные[],3,FALSE)<>0) ->  | M65: =VLOOKUP(База[[#This Row],[Уник]],Уникальные[],2,FALSE) ->  | N65: =VLOOKUP(База[[#This Row],[Уник]],Уникальные[],3,FALSE) -> 
A66: 2016-03-14T02:01:41 | B66: =MOD(База[[#This Row],[От]],1) -> 02:01:41 | C66: 2016-03-14T12:48:25 | D66: =MOD(База[[#This Row],[До]],1) -> 12:48:25 | E66: Событие36 | F66: №5 | G66: действие36 | I66: 0.44 | J66: 18 | K66: =База[[#This Row],[№ события]]&База[[#This Row],[ 1-6]]&База[[#This Row],[№ действия]] -> Событие36№5действие36 | L66: =AND(VLOOKUP(База[[#This Row],[Уник]],Уникальные[],2,FALSE)<>0,VLOOKUP(База[[#This Row],[Уник]],Уникальные[],3,FALSE)<>0) ->  | M66: =VLOOKUP(База[[#This Row],[Уник]],Уникальные[],2,FALSE) ->  | N66: =VLOOKUP(База[[#This Row],[Уник]],Уникальные[],3,FALSE) -> 
A67: 2016-03-14T02:02:07 | B67: =MOD(База[[#This Row],[От]],1) -> 02:02:07 | C67: 2016-03-14T16:32:01 | D67: =MOD(База[[#This Row],[До]],1) -> 16:32:01 | E67: Событие37 | F67: №1 | G67: действие44 | I67: 0.48 | J67: 14 | K67: =База[[#This Row],[№ события]]&База[[#This Row],[ 1-6]]&База[[#This Row],[№ действия]] -> Событие37№1действие44 | L67: =AND(VLOOKUP(База[[#This Row],[Уник]],Уникальные[],2,FALSE)<>0,VLOOKUP(База[[#This Row],[Уник]],Уникальные[],3,FALSE)<>0) ->  | M67: =VLOOKUP(База[[#This Row],[Уник]],Уникальные[],2,FALSE) ->  | N67: =VLOOKUP(База[[#This Row],[Уник]],Уникальные[],3,FALSE) -> 
A68: 2016-03-14T02:02:15 | B68: =MOD(База[[#This Row],[От]],1) -> 02:02:15 | C68: 2016-03-14T15:03:30 | D68: =MOD(База[[#This Row],[До]],1) -> 15:03:30 | E68: Событие37 | F68: №2 | G68: действие36 | I68: 0.51 | J68: 15 | K68: =База[[#This Row],[№ события]]&База[[#This Row],[ 1-6]]&База[[#This Row],[№ действия]] -> Событие37№2действие36 | L68: =AND(VLOOKUP(База[[#This Row],[Уник]],Уникальные[],2,FALSE)<>0,VLOOKUP(База[[#This Row],[Уник]],Уникальные[],3,FALSE)<>0) ->  | M68: =VLOOKUP(База[[#This Row],[Уник]],Уникальные[],2,FALSE) ->  | N68: =VLOOKUP(База[[#This Row],[Уник]],Уникальные[],3,FALSE) -> 
A69: 2016-03-14T02:02:26 | B69: =MOD(База[[#This Row],[От]],1) -> 02:02:26 | C69: 2016-03-14T10:37:26 | D69: =MOD(База[[#This Row],[До]],1) -> 10:37:26 | E69: Событие37 | F69: №3 | G69: действие45 | I69: 0.67 | J69: 27 | K69: =База[[#This Row],[№ события]]&База[[#This Row],[ 1-6]]&База[[#This Row],[№ действия]] -> Событие37№3действие45 | L69: =AND(VLOOKUP(База[[#This Row],[Уник]],Уникальные[],2,FALSE)<>0,VLOOKUP(База[[#This Row],[Уник]],Уникальные[],3,FALSE)<>0) ->  | M69: =VLOOKUP(База[[#This Row],[Уник]],Уникальные[],2,FALSE) ->  | N69: =VLOOKUP(База[[#This Row],[Уник]],Уникальные[],3,FALSE) -> 
A70: 2016-03-14T02:02:41 | B70: =MOD(База[[#This Row],[От]],1) -> 02:02:41 | C70: 2016-03-14T09:51:30 | D70: =MOD(База[[#This Row],[До]],1) -> 09:51:30 | E70: Событие37 | F70: №5 | G70: действие46 | I70: 0.57 | J70: 18 | K70: =База[[#This Row],[№ события]]&База[[#This Row],[ 1-6]]&База[[#This Row],[№ действия]] -> Событие37№5действие46 | L70: =AND(VLOOKUP(База[[#This Row],[Уник]],Уникальные[],2,FALSE)<>0,VLOOKUP(База[[#This Row],[Уник]],Уникальные[],3,FALSE)<>0) ->  | M70: =VLOOKUP(База[[#This Row],[Уник]],Уникальные[],2,FALSE) ->  | N70: =VLOOKUP(База[[#This Row],[Уник]],Уникальные[],3,FALSE) -> 
A71: 2016-03-14T02:03:30 | B71: =MOD(База[[#This Row],[От]],1) -> 02:03:30 | C71: 2016-03-14T10:38:12 | D71: =MOD(База[[#This Row],[До]],1) -> 10:38:12 | E71: Событие38 | F71: №3 | G71: действие22 | I71: 0.54 | J71: 15 | K71: =База[[#This Row],[№ события]]&База[[#This Row],[ 1-6]]&База[[#This Row],[№ действия]] -> Событие38№3действие22 | L71: =AND(VLOOKUP(База[[#This Row],[Уник]],Уникальные[],2,FALSE)<>0,VLOOKUP(База[[#This Row],[Уник]],Уникальные[],3,FALSE)<>0) ->  | M71: =VLOOKUP(База[[#This Row],[Уник]],Уникальные[],2,FALSE) ->  | N71: =VLOOKUP(База[[#This Row],[Уник]],Уникальные[],3,FALSE) -> 
A72: 2016-03-14T02:03:38 | B72: =MOD(База[[#This Row],[От]],1) -> 02:03:38 | C72: 2016-03-14T19:49:24 | D72: =MOD(База[[#This Row],[До]],1) -> 19:49:24 | E72: Событие38 | F72: №4 | G72: действие47 | I72: 1 | J72: 19 | K72: =База[[#This Row],[№ события]]&База[[#This Row],[ 1-6]]&База[[#This Row],[№ действия]] -> Событие38№4действие47 | L72: =AND(VLOOKUP(База[[#This Row],[Уник]],Уникальные[],2,FALSE)<>0,VLOOKUP(База[[#This Row],[Уник]],Уникальные[],3,FALSE)<>0) ->  | M72: =VLOOKUP(База[[#This Row],[Уник]],Уникальные[],2,FALSE) ->  | N72: =VLOOKUP(База[[#This Row],[Уник]],Уникальные[],3,FALSE) -> 
A73: 2016-03-14T02:04:08 | B73: =MOD(База[[#This Row],[От]],1) -> 02:04:08 | C73: 2016-03-14T16:33:37 | D73: =MOD(База[[#This Row],[До]],1) -> 16:33:37 | E73: Событие39 | F73: №2 | G73: действие48 | I73: 0.31 | J73: 27 | K73: =База[[#This Row],[№ события]]&База[[#This Row],[ 1-6]]&База[[#This Row],[№ действия]] -> Событие39№2действие48 | L73: =AND(VLOOKUP(База[[#This Row],[Уник]],Уникальные[],2,FALSE)<>0,VLOOKUP(База[[#This Row],[Уник]],Уникальные[],3,FALSE)<>0) ->  | M73: =VLOOKUP(База[[#This Row],[Уник]],Уникальные[],2,FALSE) ->  | N73: =VLOOKUP(База[[#This Row],[Уник]],Уникальные[],3,FALSE) -> 
A74: 2016-03-14T02:05:04 | B74: =MOD(База[[#This Row],[От]],1) -> 02:05:04 | C74: 2016-03-14T19:49:54 | D74: =MOD(База[[#This Row],[До]],1) -> 19:49:54 | E74: Событие40 | F74: №2 | G74: действие49 | I74: 0.48 | J74: 15 | K74: =База[[#This Row],[№ события]]&База[[#This Row],[ 1-6]]&База[[#This Row],[№ действия]] -> Событие40№2действие49 | L74: =AND(VLOOKUP(База[[#This Row],[Уник]],Уникальные[],2,FALSE)<>0,VLOOKUP(База[[#This Row],[Уник]],Уникальные[],3,FALSE)<>0) ->  | M74: =VLOOKUP(База[[#This Row],[Уник]],Уникальные[],2,FALSE) ->  | N74: =VLOOKUP(База[[#This Row],[Уник]],Уникальные[],3,FALSE) -> 
A75: 2016-03-14T02:05:12 | B75: =MOD(База[[#This Row],[От]],1) -> 02:05:12 | C75: 2016-03-14T02:05:12 | D75: =MOD(База[[#This Row],[До]],1) -> 02:05:12 | E75: Событие40 | F75: №3 | G75: действие8 | I75: 0.57 | J75: 20 | K75: =База[[#This Row],[№ события]]&База[[#This Row],[ 1-6]]&База[[#This Row],[№ действия]] -> Событие40№3действие8 | L75: =AND(VLOOKUP(База[[#This Row],[Уник]],Уникальные[],2,FALSE)<>0,VLOOKUP(База[[#This Row],[Уник]],Уникальные[],3,FALSE)<>0) ->  | M75: =VLOOKUP(База[[#This Row],[Уник]],Уникальные[],2,FALSE) ->  | N75: =VLOOKUP(База[[#This Row],[Уник]],Уникальные[],3,FALSE) -> 
A76: 2016-03-14T02:05:40 | B76: =MOD(База[[#This Row],[От]],1) -> 02:05:40 | C76: 2016-03-14T16:34:44 | D76: =MOD(База[[#This Row],[До]],1) -> 16:34:44 | E76: Событие41 | F76: №2 | G76: действие21 | I76: 0.38 | J76: 23 | K76: =База[[#This Row],[№ события]]&База[[#This Row],[ 1-6]]&База[[#This Row],[№ действия]] -> Событие41№2действие21 | L76: =AND(VLOOKUP(База[[#This Row],[Уник]],Уникальные[],2,FALSE)<>0,VLOOKUP(База[[#This Row],[Уник]],Уникальные[],3,FALSE)<>0) ->  | M76: =VLOOKUP(База[[#This Row],[Уник]],Уникальные[],2,FALSE) ->  | N76: =VLOOKUP(База[[#This Row],[Уник]],Уникальные[],3,FALSE) -> 
A77: 2016-03-14T01:59:01 | B77: =MOD(База[[#This Row],[От]],1) -> 01:59:01 | C77: 2016-03-14T16:35:15 | D77: =MOD(База[[#This Row],[До]],1) -> 16:35:15 | E77: Событие42 | F77: №2 | G77: действие50 | I77: 0.62 | J77: 25 | K77: =База[[#This Row],[№ события]]&База[[#This Row],[ 1-6]]&База[[#This Row],[№ действия]] -> Событие42№2действие50 | L77: =AND(VLOOKUP(База[[#This Row],[Уник]],Уникальные[],2,FALSE)<>0,VLOOKUP(База[[#This Row],[Уник]],Уникальные[],3,FALSE)<>0) ->  | M77: =VLOOKUP(База[[#This Row],[Уник]],Уникальные[],2,FALSE) ->  | N77: =VLOOKUP(База[[#This Row],[Уник]],Уникальные[],3,FALSE) -> 
A78: 2016-03-14T02:00:40 | B78: =MOD(База[[#This Row],[От]],1) -> 02:00:40 | C78: 2016-03-14T14:13:41 | D78: =MOD(База[[#This Row],[До]],1) -> 14:13:41 | E78: Событие43 | F78: №1 | G78: действие38 | I78: 0.92 | J78: 8 | K78: =База[[#This Row],[№ события]]&База[[#This Row],[ 1-6]]&База[[#This Row],[№ действия]] -> Событие43№1действие38 | L78: =AND(VLOOKUP(База[[#This Row],[Уник]],Уникальные[],2,FALSE)<>0,VLOOKUP(База[[#This Row],[Уник]],Уникальные[],3,FALSE)<>0) ->  | M78: =VLOOKUP(База[[#This Row],[Уник]],Уникальные[],2,FALSE) ->  | N78: =VLOOKUP(База[[#This Row],[Уник]],Уникальные[],3,FALSE) -> 
A79: 2016-03-14T02:00:57 | B79: =MOD(База[[#This Row],[От]],1) -> 02:00:57 | C79: 2016-03-14T16:36:07 | D79: =MOD(База[[#This Row],[До]],1) -> 16:36:07 | E79: Событие43 | F79: №3 | G79: действие24 | I79: 0.47 | J79: 13 | K79: =База[[#This Row],[№ события]]&База[[#This Row],[ 1-6]]&База[[#This Row],[№ действия]] -> Событие43№3действие24 | L79: =AND(VLOOKUP(База[[#This Row],[Уник]],Уникальные[],2,FALSE)<>0,VLOOKUP(База[[#This Row],[Уник]],Уникальные[],3,FALSE)<>0) ->  | M79: =VLOOKUP(База[[#This Row],[Уник]],Уникальные[],2,FALSE) ->  | N79: =VLOOKUP(База[[#This Row],[Уник]],Уникальные[],3,FALSE) -> 
A80: 2016-03-14T02:01:05 | B80: =MOD(База[[#This Row],[От]],1) -> 02:01:05 | C80: 2016-03-14T02:01:05 | D80: =MOD(База[[#This Row],[До]],1) -> 02:01:05 | E80: Событие43 | F80: №4 | G80: действие51 | I80: 0.58 | J80: 19 | K80: =База[[#This Row],[№ события]]&База[[#This Row],[ 1-6]]&База[[#This Row],[№ действия]] -> Событие43№4действие51 | L80: =AND(VLOOKUP(База[[#This Row],[Уник]],Уникальные[],2,FALSE)<>0,VLOOKUP(База[[#This Row],[Уник]],Уникальные[],3,FALSE)<>0) ->  | M80: =VLOOKUP(База[[#This Row],[Уник]],Уникальные[],2,FALSE) ->  | N80: =VLOOKUP(База[[#This Row],[Уник]],Уникальные[],3,FALSE) -> 
A81: 2016-03-14T02:01:13 | B81: =MOD(База[[#This Row],[От]],1) -> 02:01:13 | C81: 2016-03-14T19:51:31 | D81: =MOD(База[[#This Row],[До]],1) -> 19:51:31 | E81: Событие43 | F81: №6 | G81: действие52 | I81: 0.47 | J81: 13 | K81: =База[[#This Row],[№ события]]&База[[#This Row],[ 1-6]]&База[[#This Row],[№ действия]] -> Событие43№6действие52 | L81: =AND(VLOOKUP(База[[#This Row],[Уник]],Уникальные[],2,FALSE)<>0,VLOOKUP(База[[#This Row],[Уник]],Уникальные[],3,FALSE)<>0) ->  | M81: =VLOOKUP(База[[#This Row],[Уник]],Уникальные[],2,FALSE) ->  | N81: =VLOOKUP(База[[#This Row],[Уник]],Уникальные[],3,FALSE) -> 
A82: 2016-03-14T02:01:39 | B82: =MOD(База[[#This Row],[От]],1) -> 02:01:39 | C82: 2016-03-14T19:51:59 | D82: =MOD(База[[#This Row],[До]],1) -> 19:51:59 | E82: Событие44 | F82: №2 | G82: действие6 | I82: 0.55 | J82: 15 | K82: =База[[#This Row],[№ события]]&База[[#This Row],[ 1-6]]&База[[#This Row],[№ действия]] -> Событие44№2действие6 | L82: =AND(VLOOKUP(База[[#This Row],[Уник]],Уникальные[],2,FALSE)<>0,VLOOKUP(База[[#This Row],[Уник]],Уникальные[],3,FALSE)<>0) ->  | M82: =VLOOKUP(База[[#This Row],[Уник]],Уникальные[],2,FALSE) ->  | N82: =VLOOKUP(База[[#This Row],[Уник]],Уникальные[],3,FALSE) -> 
A83: 2016-03-14T02:03:17 | B83: =MOD(База[[#This Row],[От]],1) -> 02:03:17 | C83: 2016-03-14T02:03:17 | D83: =MOD(База[[#This Row],[До]],1) -> 02:03:17 | E83: Событие45 | F83: №1 | G83: действие53 | I83: 0.39 | J83: 18 | K83: =База[[#This Row],[№ события]]&База[[#This Row],[ 1-6]]&База[[#This Row],[№ действия]] -> Событие45№1действие53 | L83: =AND(VLOOKUP(База[[#This Row],[Уник]],Уникальные[],2,FALSE)<>0,VLOOKUP(База[[#This Row],[Уник]],Уникальные[],3,FALSE)<>0) ->  | M83: =VLOOKUP(База[[#This Row],[Уник]],Уникальные[],2,FALSE) ->  | N83: =VLOOKUP(База[[#This Row],[Уник]],Уникальные[],3,FALSE) -> 
A84: 2016-03-14T02:03:25 | B84: =MOD(База[[#This Row],[От]],1) -> 02:03:25 | C84: 2016-03-14T19:52:35 | D84: =MOD(База[[#This Row],[До]],1) -> 19:52:35 | E84: Событие45 | F84: №2 | G84: действие43 | I84: 0.34 | J84: 27 | K84: =База[[#This Row],[№ события]]&База[[#This Row],[ 1-6]]&База[[#This Row],[№ действия]] -> Событие45№2действие43 | L84: =AND(VLOOKUP(База[[#This Row],[Уник]],Уникальные[],2,FALSE)<>0,VLOOKUP(База[[#This Row],[Уник]],Уникальные[],3,FALSE)<>0) ->  | M84: =VLOOKUP(База[[#This Row],[Уник]],Уникальные[],2,FALSE) ->  | N84: =VLOOKUP(База[[#This Row],[Уник]],Уникальные[],3,FALSE) -> 
A85: 2016-03-14T02:03:33 | B85: =MOD(База[[#This Row],[От]],1) -> 02:03:33 | C85: 2016-03-14T02:03:33 | D85: =MOD(База[[#This Row],[До]],1) -> 02:03:33 | E85: Событие45 | F85: №3 | G85: действие54 | I85: 0.31 | J85: 17 | K85: =База[[#This Row],[№ события]]&База[[#This Row],[ 1-6]]&База[[#This Row],[№ действия]] -> Событие45№3действие54 | L85: =AND(VLOOKUP(База[[#This Row],[Уник]],Уникальные[],2,FALSE)<>0,VLOOKUP(База[[#This Row],[Уник]],Уникальные[],3,FALSE)<>0) ->  | M85: =VLOOKUP(База[[#This Row],[Уник]],Уникальные[],2,FALSE) ->  | N85: =VLOOKUP(База[[#This Row],[Уник]],Уникальные[],3,FALSE) -> 
A86: 2016-03-14T02:04:10 | B86: =MOD(База[[#This Row],[От]],1) -> 02:04:10 | C86: 2016-03-14T05:04:56 | D86: =MOD(База[[#This Row],[До]],1) -> 05:04:56 | E86: Событие46 | F86: №3 | G86: действие51 | I86: 0.74 | J86: 13 | K86: =База[[#This Row],[№ события]]&База[[#This Row],[ 1-6]]&База[[#This Row],[№ действия]] -> Событие46№3действие51 | L86: =AND(VLOOKUP(База[[#This Row],[Уник]],Уникальные[],2,FALSE)<>0,VLOOKUP(База[[#This Row],[Уник]],Уникальные[],3,FALSE)<>0) ->  | M86: =VLOOKUP(База[[#This Row],[Уник]],Уникальные[],2,FALSE) ->  | N86: =VLOOKUP(База[[#This Row],[Уник]],Уникальные[],3,FALSE) -> 
A87: 2016-03-14T02:04:21 | B87: =MOD(База[[#This Row],[От]],1) -> 02:04:21 | C87: 2016-03-14T19:53:31 | D87: =MOD(База[[#This Row],[До]],1) -> 19:53:31 | E87: Событие46 | F87: №5 | G87: действие7 | I87: 0.6 | J87: 23 | K87: =База[[#This Row],[№ события]]&База[[#This Row],[ 1-6]]&База[[#This Row],[№ действия]] -> Событие46№5действие7 | L87: =AND(VLOOKUP(База[[#This Row],[Уник]],Уникальные[],2,FALSE)<>0,VLOOKUP(База[[#This Row],[Уник]],Уникальные[],3,FALSE)<>0) ->  | M87: =VLOOKUP(База[[#This Row],[Уник]],Уникальные[],2,FALSE) ->  | N87: =VLOOKUP(База[[#This Row],[Уник]],Уникальные[],3,FALSE) -> 
A88: 2016-03-14T02:05:12 | B88: =MOD(База[[#This Row],[От]],1) -> 02:05:12 | C88: 2016-03-14T02:05:12 | D88: =MOD(База[[#This Row],[До]],1) -> 02:05:12 | E88: Событие47 | F88: №2 | G88: действие55 | I88: 0.31 | J88: 24 | K88: =База[[#This Row],[№ события]]&База[[#This Row],[ 1-6]]&База[[#This Row],[№ действия]] -> Событие47№2действие55 | L88: =AND(VLOOKUP(База[[#This Row],[Уник]],Уникальные[],2,FALSE)<>0,VLOOKUP(База[[#This Row],[Уник]],Уникальные[],3,FALSE)<>0) ->  | M88: =VLOOKUP(База[[#This Row],[Уник]],Уникальные[],2,FALSE) ->  | N88: =VLOOKUP(База[[#This Row],[Уник]],Уникальные[],3,FALSE) -> 
A89: 2016-03-14T02:07:29 | B89: =MOD(База[[#This Row],[От]],1) -> 02:07:29 | C89: 2016-03-14T16:39:20 | D89: =MOD(База[[#This Row],[До]],1) -> 16:39:20 | E89: Событие48 | F89: №2 | G89: действие56 | I89: 0.38 | J89: 13 | K89: =База[[#This Row],[№ события]]&База[[#This Row],[ 1-6]]&База[[#This Row],[№ действия]] -> Событие48№2действие56 | L89: =AND(VLOOKUP(База[[#This Row],[Уник]],Уникальные[],2,FALSE)<>0,VLOOKUP(База[[#This Row],[Уник]],Уникальные[],3,FALSE)<>0) ->  | M89: =VLOOKUP(База[[#This Row],[Уник]],Уникальные[],2,FALSE) ->  | N89: =VLOOKUP(База[[#This Row],[Уник]],Уникальные[],3,FALSE) -> 
A90: 2016-03-14T02:07:38 | B90: =MOD(База[[#This Row],[От]],1) -> 02:07:38 | C90: 2016-03-14T19:10:53 | D90: =MOD(База[[#This Row],[До]],1) -> 19:10:53 | E90: Событие48 | F90: №4 | G90: действие24 | I90: 0.51 | J90: 7 | K90: =База[[#This Row],[№ события]]&База[[#This Row],[ 1-6]]&База[[#This Row],[№ действия]] -> Событие48№4действие24 | L90: =AND(VLOOKUP(База[[#This Row],[Уник]],Уникальные[],2,FALSE)<>0,VLOOKUP(База[[#This Row],[Уник]],Уникальные[],3,FALSE)<>0) ->  | M90: =VLOOKUP(База[[#This Row],[Уник]],Уникальные[],2,FALSE) ->  | N90: =VLOOKUP(База[[#This Row],[Уник]],Уникальные[],3,FALSE) -> 
A91: 2016-03-14T02:07:46 | B91: =MOD(База[[#This Row],[От]],1) -> 02:07:46 | C91: 2016-03-14T02:07:46 | D91: =MOD(База[[#This Row],[До]],1) -> 02:07:46 | E91: Событие48 | F91: №5 | G91: действие13 | I91: 0.38 | J91: 13 | K91: =База[[#This Row],[№ события]]&База[[#This Row],[ 1-6]]&База[[#This Row],[№ действия]] -> Событие48№5действие13 | L91: =AND(VLOOKUP(База[[#This Row],[Уник]],Уникальные[],2,FALSE)<>0,VLOOKUP(База[[#This Row],[Уник]],Уникальные[],3,FALSE)<>0) ->  | M91: =VLOOKUP(База[[#This Row],[Уник]],Уникальные[],2,FALSE) ->  | N91: =VLOOKUP(База[[#This Row],[Уник]],Уникальные[],3,FALSE) -> 
A92: 2016-03-14T02:08:16 | B92: =MOD(База[[#This Row],[От]],1) -> 02:08:16 | C92: 2016-03-14T15:02:38 | D92: =MOD(База[[#This Row],[До]],1) -> 15:02:38 | E92: Событие49 | F92: №3 | G92: действие57 | I92: 0.89 | J92: 11 | K92: =База[[#This Row],[№ события]]&База[[#This Row],[ 1-6]]&База[[#This Row],[№ действия]] -> Событие49№3действие57 | L92: =AND(VLOOKUP(База[[#This Row],[Уник]],Уникальные[],2,FALSE)<>0,VLOOKUP(База[[#This Row],[Уник]],Уникальные[],3,FALSE)<>0) ->  | M92: =VLOOKUP(База[[#This Row],[Уник]],Уникальные[],2,FALSE) ->  | N92: =VLOOKUP(База[[#This Row],[Уник]],Уникальные[],3,FALSE) -> 
A93: 2016-03-14T02:08:23 | B93: =MOD(База[[#This Row],[От]],1) -> 02:08:23 | C93: 2016-03-14T19:11:32 | D93: =MOD(База[[#This Row],[До]],1) -> 19:11:32 | E93: Событие49 | F93: №5 | G93: действие58 | I93: 0.56 | J93: 24 | K93: =База[[#This Row],[№ события]]&База[[#This Row],[ 1-6]]&База[[#This Row],[№ действия]] -> Событие49№5действие58 | L93: =AND(VLOOKUP(База[[#This Row],[Уник]],Уникальные[],2,FALSE)<>0,VLOOKUP(База[[#This Row],[Уник]],Уникальные[],3,FALSE)<>0) ->  | M93: =VLOOKUP(База[[#This Row],[Уник]],Уникальные[],2,FALSE) ->  | N93: =VLOOKUP(База[[#This Row],[Уник]],Уникальные[],3,FALSE) -> 
A94: 2016-03-14T02:09:49 | B94: =MOD(База[[#This Row],[От]],1) -> 02:09:49 | C94: 2016-03-14T16:40:34 | D94: =MOD(База[[#This Row],[До]],1) -> 16:40:34 | E94: Событие50 | F94: №1 | G94: действие58 | I94: 0.55 | J94: 23 | K94: =База[[#This Row],[№ события]]&База[[#This Row],[ 1-6]]&База[[#This Row],[№ действия]] -> Событие50№1действие58 | L94: =AND(VLOOKUP(База[[#This Row],[Уник]],Уникальные[],2,FALSE)<>0,VLOOKUP(База[[#This Row],[Уник]],Уникальные[],3,FALSE)<>0) ->  | M94: =VLOOKUP(База[[#This Row],[Уник]],Уникальные[],2,FALSE) ->  | N94: =VLOOKUP(База[[#This Row],[Уник]],Уникальные[],3,FALSE) -> 
A95: 2016-03-14T02:09:57 | B95: =MOD(База[[#This Row],[От]],1) -> 02:09:57 | C95: 2016-03-14T19:12:10 | D95: =MOD(База[[#This Row],[До]],1) -> 19:12:10 | E95: Событие50 | F95: №2 | G95: действие59 | I95: 0.49 | J95: 16 | K95: =База[[#This Row],[№ события]]&База[[#This Row],[ 1-6]]&База[[#This Row],[№ действия]] -> Событие50№2действие59 | L95: =AND(VLOOKUP(База[[#This Row],[Уник]],Уникальные[],2,FALSE)<>0,VLOOKUP(База[[#This Row],[Уник]],Уникальные[],3,FALSE)<>0) ->  | M95: =VLOOKUP(База[[#This Row],[Уник]],Уникальные[],2,FALSE) ->  | N95: =VLOOKUP(База[[#This Row],[Уник]],Уникальные[],3,FALSE) -> 
A96: 2016-03-14T02:10:48 | B96: =MOD(База[[#This Row],[От]],1) -> 02:10:48 | C96: 2016-03-14T16:41:17 | D96: =MOD(База[[#This Row],[До]],1) -> 16:41:17 | E96: Событие51 | F96: №5 | G96: действие25 | I96: 0.55 | J96: 18 | K96: =База[[#This Row],[№ события]]&База[[#This Row],[ 1-6]]&База[[#This Row],[№ действия]] -> Событие51№5действие25 | L96: =AND(VLOOKUP(База[[#This Row],[Уник]],Уникальные[],2,FALSE)<>0,VLOOKUP(База[[#This Row],[Уник]],Уникальные[],3,FALSE)<>0) ->  | M96: =VLOOKUP(База[[#This Row],[Уник]],Уникальные[],2,FALSE) ->  | N96: =VLOOKUP(База[[#This Row],[Уник]],Уникальные[],3,FALSE) -> 
A97: 2016-03-14T02:11:49 | B97: =MOD(База[[#This Row],[От]],1) -> 02:11:49 | C97: 2016-03-14T19:13:12 | D97: =MOD(База[[#This Row],[До]],1) -> 19:13:12 | E97: Событие52 | F97: №1 | G97: действие60 | I97: 0.71 | J97: 10 | K97: =База[[#This Row],[№ события]]&База[[#This Row],[ 1-6]]&База[[#This Row],[№ действия]] -> Событие52№1действие60 | L97: =AND(VLOOKUP(База[[#This Row],[Уник]],Уникальные[],2,FALSE)<>0,VLOOKUP(База[[#This Row],[Уник]],Уникальные[],3,FALSE)<>0) ->  | M97: =VLOOKUP(База[[#This Row],[Уник]],Уникальные[],2,FALSE) ->  | N97: =VLOOKUP(База[[#This Row],[Уник]],Уникальные[],3,FALSE) -> 
A98: 2016-03-14T02:11:57 | B98: =MOD(База[[#This Row],[От]],1) -> 02:11:57 | C98: 2016-03-14T09:52:38 | D98: =MOD(База[[#This Row],[До]],1) -> 09:52:38 | E98: Событие52 | F98: №3 | G98: действие52 | I98: 0.7 | J98: 12 | K98: =База[[#This Row],[№ события]]&База[[#This Row],[ 1-6]]&База[[#This Row],[№ действия]] -> Событие52№3действие52 | L98: =AND(VLOOKUP(База[[#This Row],[Уник]],Уникальные[],2,FALSE)<>0,VLOOKUP(База[[#This Row],[Уник]],Уникальные[],3,FALSE)<>0) ->  | M98: =VLOOKUP(База[[#This Row],[Уник]],Уникальные[],2,FALSE) ->  | N98: =VLOOKUP(База[[#This Row],[Уник]],Уникальные[],3,FALSE) -> 
A99: 2016-03-14T02:12:04 | B99: =MOD(База[[#This Row],[От]],1) -> 02:12:04 | C99: 2016-03-14T14:20:03 | D99: =MOD(База[[#This Row],[До]],1) -> 14:20:03 | E99: Событие52 | F99: №4 | G99: действие61 | I99: 0.71 | J99: 14 | K99: =База[[#This Row],[№ события]]&База[[#This Row],[ 1-6]]&База[[#This Row],[№ действия]] -> Событие52№4действие61 | L99: =AND(VLOOKUP(База[[#This Row],[Уник]],Уникальные[],2,FALSE)<>0,VLOOKUP(База[[#This Row],[Уник]],Уникальные[],3,FALSE)<>0) ->  | M99: =VLOOKUP(База[[#This Row],[Уник]],Уникальные[],2,FALSE) ->  | N99: =VLOOKUP(База[[#This Row],[Уник]],Уникальные[],3,FALSE) -> 
A100: 2016-03-14T02:12:12 | B100: =MOD(База[[#This Row],[От]],1) -> 02:12:12 | C100: 2016-03-14T19:13:35 | D100: =MOD(База[[#This Row],[До]],1) -> 19:13:35 | E100: Событие52 | F100: №5 | G100: действие4 | I100: 0.77 | J100: 9 | K100: =База[[#This Row],[№ события]]&База[[#This Row],[ 1-6]]&База[[#This Row],[№ действия]] -> Событие52№5действие4 | L100: =AND(VLOOKUP(База[[#This Row],[Уник]],Уникальные[],2,FALSE)<>0,VLOOKUP(База[[#This Row],[Уник]],Уникальные[],3,FALSE)<>0) ->  | M100: =VLOOKUP(База[[#This Row],[Уник]],Уникальные[],2,FALSE) ->  | N100: =VLOOKUP(База[[#This Row],[Уник]],Уникальные[],3,FALSE) -> 
A101: 2016-03-14T02:12:41 | B101: =MOD(База[[#This Row],[От]],1) -> 02:12:41 | C101: 2016-03-14T19:14:03 | D101: =MOD(База[[#This Row],[До]],1) -> 19:14:03 | E101: Событие53 | F101: №5 | G101: действие17 | I101: 0.65 | J101: 11 | K101: =База[[#This Row],[№ события]]&База[[#This Row],[ 1-6]]&База[[#This Row],[№ действия]] -> Событие53№5действие17 | L101: =AND(VLOOKUP(База[[#This Row],[Уник]],Уникальные[],2,FALSE)<>0,VLOOKUP(База[[#This Row],[Уник]],Уникальные[],3,FALSE)<>0) ->  | M101: =VLOOKUP(База[[#This Row],[Уник]],Уникальные[],2,FALSE) ->  | N101: =VLOOKUP(База[[#This Row],[Уник]],Уникальные[],3,FALSE) -> 
A102: 2016-03-14T02:13:24 | B102: =MOD(База[[#This Row],[От]],1) -> 02:13:24 | C102: 2016-03-14T10:40:16 | D102: =MOD(База[[#This Row],[До]],1) -> 10:40:16 | E102: Событие54 | F102: №1 | G102: действие62 | I102: 1 | J102: 9 | K102: =База[[#This Row],[№ события]]&База[[#This Row],[ 1-6]]&База[[#This Row],[№ действия]] -> Событие54№1действие62 | L102: =AND(VLOOKUP(База[[#This Row],[Уник]],Уникальные[],2,FALSE)<>0,VLOOKUP(База[[#This Row],[Уник]],Уникальные[],3,FALSE)<>0) ->  | M102: =VLOOKUP(База[[#This Row],[Уник]],Уникальные[],2,FALSE) ->  | N102: =VLOOKUP(База[[#This Row],[Уник]],Уникальные[],3,FALSE) -> 
A103: 2016-03-14T02:13:33 | B103: =MOD(База[[#This Row],[От]],1) -> 02:13:33 | C103: 2016-03-14T19:14:43 | D103: =MOD(База[[#This Row],[До]],1) -> 19:14:43 | E103: Событие54 | F103: №2 | G103: действие60 | I103: 0.65 | J103: 7 | K103: =База[[#This Row],[№ события]]&База[[#This Row],[ 1-6]]&База[[#This Row],[№ действия]] -> Событие54№2действие60 | L103: =AND(VLOOKUP(База[[#This Row],[Уник]],Уникальные[],2,FALSE)<>0,VLOOKUP(База[[#This Row],[Уник]],Уникальные[],3,FALSE)<>0) ->  | M103: =VLOOKUP(База[[#This Row],[Уник]],Уникальные[],2,FALSE) ->  | N103: =VLOOKUP(База[[#This Row],[Уник]],Уникальные[],3,FALSE) -> 
A104: 2016-03-14T02:13:45 | B104: =MOD(База[[#This Row],[От]],1) -> 02:13:45 | C104: 2016-03-14T19:14:51 | D104: =MOD(База[[#This Row],[До]],1) -> 19:14:51 | E104: Событие54 | F104: №4 | G104: действие63 | I104: 0.46 | J104: 13 | K104: =База[[#This Row],[№ события]]&База[[#This Row],[ 1-6]]&База[[#This Row],[№ действия]] -> Событие54№4действие63 | L104: =AND(VLOOKUP(База[[#This Row],[Уник]],Уникальные[],2,FALSE)<>0,VLOOKUP(База[[#This Row],[Уник]],Уникальные[],3,FALSE)<>0) ->  | M104: =VLOOKUP(База[[#This Row],[Уник]],Уникальные[],2,FALSE) ->  | N104: =VLOOKUP(База[[#This Row],[Уник]],Уникальные[],3,FALSE) -> 
A105: 2016-03-14T02:13:55 | B105: =MOD(База[[#This Row],[От]],1) -> 02:13:55 | C105: 2016-03-14T09:54:22 | D105: =MOD(База[[#This Row],[До]],1) -> 09:54:22 | E105: Событие54 | F105: №5 | G105: действие64 | I105: 0.31 | J105: 20 | K105: =База[[#This Row],[№ события]]&База[[#This Row],[ 1-6]]&База[[#This Row],[№ действия]] -> Событие54№5действие64 | L105: =AND(VLOOKUP(База[[#This Row],[Уник]],Уникальные[],2,FALSE)<>0,VLOOKUP(База[[#This Row],[Уник]],Уникальные[],3,FALSE)<>0) ->  | M105: =VLOOKUP(База[[#This Row],[Уник]],Уникальные[],2,FALSE) ->  | N105: =VLOOKUP(База[[#This Row],[Уник]],Уникальные[],3,FALSE) -> 
A106: 2016-03-14T02:15:14 | B106: =MOD(База[[#This Row],[От]],1) -> 02:15:14 | C106: 2016-03-14T13:40:35 | D106: =MOD(База[[#This Row],[До]],1) -> 13:40:35 | E106: Событие55 | F106: №1 | G106: действие65 | I106: 0.48 | J106: 12 | K106: =База[[#This Row],[№ события]]&База[[#This Row],[ 1-6]]&База[[#This Row],[№ действия]] -> Событие55№1действие65 | L106: =AND(VLOOKUP(База[[#This Row],[Уник]],Уникальные[],2,FALSE)<>0,VLOOKUP(База[[#This Row],[Уник]],Уникальные[],3,FALSE)<>0) ->  | M106: =VLOOKUP(База[[#This Row],[Уник]],Уникальные[],2,FALSE) ->  | N106: =VLOOKUP(База[[#This Row],[Уник]],Уникальные[],3,FALSE) -> 
A107: 2016-03-14T02:15:22 | B107: =MOD(База[[#This Row],[От]],1) -> 02:15:22 | C107: 2016-03-14T16:44:11 | D107: =MOD(База[[#This Row],[До]],1) -> 16:44:11 | E107: Событие55 | F107: №2 | G107: действие8 | I107: 0.46 | J107: 12 | K107: =База[[#This Row],[№ события]]&База[[#This Row],[ 1-6]]&База[[#This Row],[№ действия]] -> Событие55№2действие8 | L107: =AND(VLOOKUP(База[[#This Row],[Уник]],Уникальные[],2,FALSE)<>0,VLOOKUP(База[[#This Row],[Уник]],Уникальные[],3,FALSE)<>0) ->  | M107: =VLOOKUP(База[[#This Row],[Уник]],Уникальные[],2,FALSE) ->  | N107: =VLOOKUP(База[[#This Row],[Уник]],Уникальные[],3,FALSE) -> 
A108: 2016-03-14T02:15:47 | B108: =MOD(База[[#This Row],[От]],1) -> 02:15:47 | C108: 2016-03-14T09:09:39 | D108: =MOD(База[[#This Row],[До]],1) -> 09:09:39 | E108: Событие56 | F108: №4 | G108: действие22 | I108: 0.55 | J108: 23 | K108: =База[[#This Row],[№ события]]&База[[#This Row],[ 1-6]]&База[[#This Row],[№ действия]] -> Событие56№4действие22 | L108: =AND(VLOOKUP(База[[#This Row],[Уник]],Уникальные[],2,FALSE)<>0,VLOOKUP(База[[#This Row],[Уник]],Уникальные[],3,FALSE)<>0) ->  | M108: =VLOOKUP(База[[#This Row],[Уник]],Уникальные[],2,FALSE) ->  | N108: =VLOOKUP(База[[#This Row],[Уник]],Уникальные[],3,FALSE) -> 
A109: 2016-03-14T02:16:14 | B109: =MOD(База[[#This Row],[От]],1) -> 02:16:14 | C109: 2016-03-14T15:07:42 | D109: =MOD(База[[#This Row],[До]],1) -> 15:07:42 | E109: Событие57 | F109: №2 | G109: действие66 | I109: 0.32 | J109: 10 | K109: =База[[#This Row],[№ события]]&База[[#This Row],[ 1-6]]&База[[#This Row],[№ действия]] -> Событие57№2действие66 | L109: =AND(VLOOKUP(База[[#This Row],[Уник]],Уникальные[],2,FALSE)<>0,VLOOKUP(База[[#This Row],[Уник]],Уникальные[],3,FALSE)<>0) ->  | M109: =VLOOKUP(База[[#This Row],[Уник]],Уникальные[],2,FALSE) ->  | N109: =VLOOKUP(База[[#This Row],[Уник]],Уникальные[],3,FALSE) -> 
A110: 2016-03-14T02:16:45 | B110: =MOD(База[[#This Row],[От]],1) -> 02:16:45 | C110: 2016-03-14T02:16:45 | D110: =MOD(База[[#This Row],[До]],1) -> 02:16:45 | E110: Событие58 | F110: №3 | G110: действие4 | I110: 0.63 | J110: 28 | K110: =База[[#This Row],[№ события]]&База[[#This Row],[ 1-6]]&База[[#This Row],[№ действия]] -> Событие58№3действие4 | L110: =AND(VLOOKUP(База[[#This Row],[Уник]],Уникальные[],2,FALSE)<>0,VLOOKUP(База[[#This Row],[Уник]],Уникальные[],3,FALSE)<>0) ->  | M110: =VLOOKUP(База[[#This Row],[Уник]],Уникальные[],2,FALSE) ->  | N110: =VLOOKUP(База[[#This Row],[Уник]],Уникальные[],3,FALSE) -> 
A111: 2016-03-14T02:17:09 | B111: =MOD(База[[#This Row],[От]],1) -> 02:17:09 | C111: 2016-03-14T08:24:27 | D111: =MOD(База[[#This Row],[До]],1) -> 08:24:27 | E111: Событие59 | F111: №5 | G111: действие29 | I111: 0.37 | J111: 7 | K111: =База[[#This Row],[№ события]]&База[[#This Row],[ 1-6]]&База[[#This Row],[№ действия]] -> Событие59№5действие29 | L111: =AND(VLOOKUP(База[[#This Row],[Уник]],Уникальные[],2,FALSE)<>0,VLOOKUP(База[[#This Row],[Уник]],Уникальные[],3,FALSE)<>0) ->  | M111: =VLOOKUP(База[[#This Row],[Уник]],Уникальные[],2,FALSE) ->  | N111: =VLOOKUP(База[[#This Row],[Уник]],Уникальные[],3,FALSE) -> 
A112: 2016-03-14T02:17:52 | B112: =MOD(База[[#This Row],[От]],1) -> 02:17:52 | C112: 2016-03-14T02:17:52 | D112: =MOD(База[[#This Row],[До]],1) -> 02:17:52 | E112: Событие60 | F112: №2 | G112: действие65 | I112: 0.58 | J112: 24 | K112: =База[[#This Row],[№ события]]&База[[#This Row],[ 1-6]]&База[[#This Row],[№ действия]] -> Событие60№2действие65 | L112: =AND(VLOOKUP(База[[#This Row],[Уник]],Уникальные[],2,FALSE)<>0,VLOOKUP(База[[#This Row],[Уник]],Уникальные[],3,FALSE)<>0) ->  | M112: =VLOOKUP(База[[#This Row],[Уник]],Уникальные[],2,FALSE) ->  | N112: =VLOOKUP(База[[#This Row],[Уник]],Уникальные[],3,FALSE) -> 
A113: 2016-03-14T02:18:00 | B113: =MOD(База[[#This Row],[От]],1) -> 02:18:00 | C113: 2016-03-14T15:53:46 | D113: =MOD(База[[#This Row],[До]],1) -> 15:53:46 | E113: Событие60 | F113: №3 | G113: действие57 | I113: 0.51 | J113: 18 | K113: =База[[#This Row],[№ события]]&База[[#This Row],[ 1-6]]&База[[#This Row],[№ действия]] -> Событие60№3действие57 | L113: =AND(VLOOKUP(База[[#This Row],[Уник]],Уникальные[],2,FALSE)<>0,VLOOKUP(База[[#This Row],[Уник]],Уникальные[],3,FALSE)<>0) ->  | M113: =VLOOKUP(База[[#This Row],[Уник]],Уникальные[],2,FALSE) ->  | N113: =VLOOKUP(База[[#This Row],[Уник]],Уникальные[],3,FALSE) -> 
A114: 2016-03-14T02:19:43 | B114: =MOD(База[[#This Row],[От]],1) -> 02:19:43 | C114: 2016-03-14T15:09:21 | D114: =MOD(База[[#This Row],[До]],1) -> 15:09:21 | E114: Событие61 | F114: №2 | G114: действие25 | I114: 1 | J114: 8 | K114: =База[[#This Row],[№ события]]&База[[#This Row],[ 1-6]]&База[[#This Row],[№ действия]] -> Событие61№2действие25 | L114: =AND(VLOOKUP(База[[#This Row],[Уник]],Уникальные[],2,FALSE)<>0,VLOOKUP(База[[#This Row],[Уник]],Уникальные[],3,FALSE)<>0) ->  | M114: =VLOOKUP(База[[#This Row],[Уник]],Уникальные[],2,FALSE) ->  | N114: =VLOOKUP(База[[#This Row],[Уник]],Уникальные[],3,FALSE) -> 
A115: 2016-03-14T02:19:51 | B115: =MOD(База[[#This Row],[От]],1) -> 02:19:51 | C115: 2016-03-14T19:18:24 | D115: =MOD(База[[#This Row],[До]],1) -> 19:18:24 | E115: Событие61 | F115: №3 | G115: действие61 | I115: 0.49 | J115: 15 | K115: =База[[#This Row],[№ события]]&База[[#This Row],[ 1-6]]&База[[#This Row],[№ действия]] -> Событие61№3действие61 | L115: =AND(VLOOKUP(База[[#This Row],[Уник]],Уникальные[],2,FALSE)<>0,VLOOKUP(База[[#This Row],[Уник]],Уникальные[],3,FALSE)<>0) ->  | M115: =VLOOKUP(База[[#This Row],[Уник]],Уникальные[],2,FALSE) ->  | N115: =VLOOKUP(База[[#This Row],[Уник]],Уникальные[],3,FALSE) -> 
A116: 2016-03-14T02:20:21 | B116: =MOD(База[[#This Row],[От]],1) -> 02:20:21 | C116: 2016-03-14T02:20:21 | D116: =MOD(База[[#This Row],[До]],1) -> 02:20:21 | E116: Событие62 | F116: №2 | G116: действие67 | I116: 0.6 | J116: 8 | K116: =База[[#This Row],[№ события]]&База[[#This Row],[ 1-6]]&База[[#This Row],[№ действия]] -> Событие62№2действие67 | L116: =AND(VLOOKUP(База[[#This Row],[Уник]],Уникальные[],2,FALSE)<>0,VLOOKUP(База[[#This Row],[Уник]],Уникальные[],3,FALSE)<>0) ->  | M116: =VLOOKUP(База[[#This Row],[Уник]],Уникальные[],2,FALSE) ->  | N116: =VLOOKUP(База[[#This Row],[Уник]],Уникальные[],3,FALSE) -> 
A117: 2016-03-14T02:20:30 | B117: =MOD(База[[#This Row],[От]],1) -> 02:20:30 | C117: 2016-03-14T05:58:36 | D117: =MOD(База[[#This Row],[До]],1) -> 05:58:36 | E117: Событие62 | F117: №6 | G117: действие14 | I117: 0.39 | J117: 23 | K117: =База[[#This Row],[№ события]]&База[[#This Row],[ 1-6]]&База[[#This Row],[№ действия]] -> Событие62№6действие14 | L117: =AND(VLOOKUP(База[[#This Row],[Уник]],Уникальные[],2,FALSE)<>0,VLOOKUP(База[[#This Row],[Уник]],Уникальные[],3,FALSE)<>0) ->  | M117: =VLOOKUP(База[[#This Row],[Уник]],Уникальные[],2,FALSE) ->  | N117: =VLOOKUP(База[[#This Row],[Уник]],Уникальные[],3,FALSE) -> 
A118: 2016-03-14T02:20:58 | B118: =MOD(База[[#This Row],[От]],1) -> 02:20:58 | C118: 2016-03-14T19:19:49 | D118: =MOD(База[[#This Row],[До]],1) -> 19:19:49 | E118: Событие63 | F118: №6 | G118: действие68 | I118: 0.55 | J118: 15 | K118: =База[[#This Row],[№ события]]&База[[#This Row],[ 1-6]]&База[[#This Row],[№ действия]] -> Событие63№6действие68 | L118: =AND(VLOOKUP(База[[#This Row],[Уник]],Уникальные[],2,FALSE)<>0,VLOOKUP(База[[#This Row],[Уник]],Уникальные[],3,FALSE)<>0) ->  | M118: =VLOOKUP(База[[#This Row],[Уник]],Уникальные[],2,FALSE) ->  | N118: =VLOOKUP(База[[#This Row],[Уник]],Уникальные[],3,FALSE) -> 
A119: 2016-03-14T02:22:17 | B119: =MOD(База[[#This Row],[От]],1) -> 02:22:17 | C119: 2016-03-14T08:27:30 | D119: =MOD(База[[#This Row],[До]],1) -> 08:27:30 | E119: Событие64 | F119: №1 | G119: действие69 | I119: 0.7 | J119: 10 | K119: =База[[#This Row],[№ события]]&База[[#This Row],[ 1-6]]&База[[#This Row],[№ действия]] -> Событие64№1действие69 | L119: =AND(VLOOKUP(База[[#This Row],[Уник]],Уникальные[],2,FALSE)<>0,VLOOKUP(База[[#This Row],[Уник]],Уникальные[],3,FALSE)<>0) ->  | M119: =VLOOKUP(База[[#This Row],[Уник]],Уникальные[],2,FALSE) ->  | N119: =VLOOKUP(База[[#This Row],[Уник]],Уникальные[],3,FALSE) -> 
A120: 2016-03-14T02:22:26 | B120: =MOD(База[[#This Row],[От]],1) -> 02:22:26 | C120: 2016-03-14T16:48:43 | D120: =MOD(База[[#This Row],[До]],1) -> 16:48:43 | E120: Событие64 | F120: №5 | G120: действие45 | I120: 0.48 | J120: 17 | K120: =База[[#This Row],[№ события]]&База[[#This Row],[ 1-6]]&База[[#This Row],[№ действия]] -> Событие64№5действие45 | L120: =AND(VLOOKUP(База[[#This Row],[Уник]],Уникальные[],2,FALSE)<>0,VLOOKUP(База[[#This Row],[Уник]],Уникальные[],3,FALSE)<>0) ->  | M120: =VLOOKUP(База[[#This Row],[Уник]],Уникальные[],2,FALSE) ->  | N120: =VLOOKUP(База[[#This Row],[Уник]],Уникальные[],3,FALSE) -> 
A121: 2016-03-14T02:22:34 | B121: =MOD(База[[#This Row],[От]],1) -> 02:22:34 | C121: 2016-03-14T16:40:42 | D121: =MOD(База[[#This Row],[До]],1) -> 16:40:42 | E121: Событие64 | F121: №6 | G121: действие70 | I121: 0.84 | J121: 16 | K121: =База[[#This Row],[№ события]]&База[[#This Row],[ 1-6]]&База[[#This Row],[№ действия]] -> Событие64№6действие70 | L121: =AND(VLOOKUP(База[[#This Row],[Уник]],Уникальные[],2,FALSE)<>0,VLOOKUP(База[[#This Row],[Уник]],Уникальные[],3,FALSE)<>0) ->  | M121: =VLOOKUP(База[[#This Row],[Уник]],Уникальные[],2,FALSE) ->  | N121: =VLOOKUP(База[[#This Row],[Уник]],Уникальные[],3,FALSE) -> 
A122: 2016-03-14T02:23:37 | B122: =MOD(База[[#This Row],[От]],1) -> 02:23:37 | C122: 2016-03-14T15:11:56 | D122: =MOD(База[[#This Row],[До]],1) -> 15:11:56 | E122: Событие65 | F122: №1 | G122: действие71 | I122: 0.62 | J122: 13 | K122: =База[[#This Row],[№ события]]&База[[#This Row],[ 1-6]]&База[[#This Row],[№ действия]] -> Событие65№1действие71 | L122: =AND(VLOOKUP(База[[#This Row],[Уник]],Уникальные[],2,FALSE)<>0,VLOOKUP(База[[#This Row],[Уник]],Уникальные[],3,FALSE)<>0) ->  | M122: =VLOOKUP(База[[#This Row],[Уник]],Уникальные[],2,FALSE) ->  | N122: =VLOOKUP(База[[#This Row],[Уник]],Уникальные[],3,FALSE) -> 
A123: 2016-03-14T02:24:20 | B123: =MOD(База[[#This Row],[От]],1) -> 02:24:20 | C123: 2016-03-14T16:41:43 | D123: =MOD(База[[#This Row],[До]],1) -> 16:41:43 | E123: Событие66 | F123: №4 | G123: действие72 | I123: 0.58 | J123: 25 | K123: =База[[#This Row],[№ события]]&База[[#This Row],[ 1-6]]&База[[#This Row],[№ действия]] -> Событие66№4действие72 | L123: =AND(VLOOKUP(База[[#This Row],[Уник]],Уникальные[],2,FALSE)<>0,VLOOKUP(База[[#This Row],[Уник]],Уникальные[],3,FALSE)<>0) ->  | M123: =VLOOKUP(База[[#This Row],[Уник]],Уникальные[],2,FALSE) ->  | N123: =VLOOKUP(База[[#This Row],[Уник]],Уникальные[],3,FALSE) -> 
A124: 2016-03-14T02:24:47 | B124: =MOD(База[[#This Row],[От]],1) -> 02:24:47 | C124: 2016-03-14T19:22:15 | D124: =MOD(База[[#This Row],[До]],1) -> 19:22:15 | E124: Событие67 | F124: №3 | G124: действие73 | I124: 0.69 | J124: 10 | K124: =База[[#This Row],[№ события]]&База[[#This Row],[ 1-6]]&База[[#This Row],[№ действия]] -> Событие67№3действие73 | L124: =AND(VLOOKUP(База[[#This Row],[Уник]],Уникальные[],2,FALSE)<>0,VLOOKUP(База[[#This Row],[Уник]],Уникальные[],3,FALSE)<>0) ->  | M124: =VLOOKUP(База[[#This Row],[Уник]],Уникальные[],2,FALSE) ->  | N124: =VLOOKUP(База[[#This Row],[Уник]],Уникальные[],3,FALSE) -> 
A125: 2016-03-14T02:26:06 | B125: =MOD(База[[#This Row],[От]],1) -> 02:26:06 | C125: 2016-03-14T16:42:45 | D125: =MOD(База[[#This Row],[До]],1) -> 16:42:45 | E125: Событие68 | F125: №3 | G125: действие42 | I125: 0.47 | J125: 8 | K125: =База[[#This Row],[№ события]]&База[[#This Row],[ 1-6]]&База[[#This Row],[№ действия]] -> Событие68№3действие42 | L125: =AND(VLOOKUP(База[[#This Row],[Уник]],Уникальные[],2,FALSE)<>0,VLOOKUP(База[[#This Row],[Уник]],Уникальные[],3,FALSE)<>0) ->  | M125: =VLOOKUP(База[[#This Row],[Уник]],Уникальные[],2,FALSE) ->  | N125: =VLOOKUP(База[[#This Row],[Уник]],Уникальные[],3,FALSE) -> 
A126: 2016-03-14T02:28:03 | B126: =MOD(База[[#This Row],[От]],1) -> 02:28:03 | C126: 2016-03-14T02:28:03 | D126: =MOD(База[[#This Row],[До]],1) -> 02:28:03 | E126: Событие69 | F126: №4 | G126: действие69 | I126: 0.93 | J126: 7 | K126: =База[[#This Row],[№ события]]&База[[#This Row],[ 1-6]]&База[[#This Row],[№ действия]] -> Событие69№4действие69 | L126: =AND(VLOOKUP(База[[#This Row],[Уник]],Уникальные[],2,FALSE)<>0,VLOOKUP(База[[#This Row],[Уник]],Уникальные[],3,FALSE)<>0) ->  | M126: =VLOOKUP(База[[#This Row],[Уник]],Уникальные[],2,FALSE) ->  | N126: =VLOOKUP(База[[#This Row],[Уник]],Уникальные[],3,FALSE) -> 
A127: 2016-03-14T02:32:16 | B127: =MOD(База[[#This Row],[От]],1) -> 02:32:16 | C127: 2016-03-14T16:46:34 | D127: =MOD(База[[#This Row],[До]],1) -> 16:46:34 | E127: Событие70 | F127: №1 | G127: действие74 | I127: 0.68 | J127: 16 | K127: =База[[#This Row],[№ события]]&База[[#This Row],[ 1-6]]&База[[#This Row],[№ действия]] -> Событие70№1действие74 | L127: =AND(VLOOKUP(База[[#This Row],[Уник]],Уникальные[],2,FALSE)<>0,VLOOKUP(База[[#This Row],[Уник]],Уникальные[],3,FALSE)<>0) ->  | M127: =VLOOKUP(База[[#This Row],[Уник]],Уникальные[],2,FALSE) ->  | N127: =VLOOKUP(База[[#This Row],[Уник]],Уникальные[],3,FALSE) -> 
A128: 2016-03-14T02:36:49 | B128: =MOD(База[[#This Row],[От]],1) -> 02:36:49 | C128: 2016-03-14T16:47:01 | D128: =MOD(База[[#This Row],[До]],1) -> 16:47:01 | E128: Событие71 | F128: №3 | G128: действие57 | I128: 1 | J128: 8 | K128: =База[[#This Row],[№ события]]&База[[#This Row],[ 1-6]]&База[[#This Row],[№ действия]] -> Событие71№3действие57 | L128: =AND(VLOOKUP(База[[#This Row],[Уник]],Уникальные[],2,FALSE)<>0,VLOOKUP(База[[#This Row],[Уник]],Уникальные[],3,FALSE)<>0) ->  | M128: =VLOOKUP(База[[#This Row],[Уник]],Уникальные[],2,FALSE) ->  | N128: =VLOOKUP(База[[#This Row],[Уник]],Уникальные[],3,FALSE) -> 
A129: 2016-03-14T02:36:58 | B129: =MOD(База[[#This Row],[От]],1) -> 02:36:58 | C129: 2016-03-14T19:27:18 | D129: =MOD(База[[#This Row],[До]],1) -> 19:27:18 | E129: Событие71 | F129: №4 | G129: действие4 | I129: 1 | J129: 7 | K129: =База[[#This Row],[№ события]]&База[[#This Row],[ 1-6]]&База[[#This Row],[№ действия]] -> Событие71№4действие4 | L129: =AND(VLOOKUP(База[[#This Row],[Уник]],Уникальные[],2,FALSE)<>0,VLOOKUP(База[[#This Row],[Уник]],Уникальные[],3,FALSE)<>0) ->  | M129: =VLOOKUP(База[[#This Row],[Уник]],Уникальные[],2,FALSE) ->  | N129: =VLOOKUP(База[[#This Row],[Уник]],Уникальные[],3,FALSE) -> 
A130: 2016-03-14T02:39:17 | B130: =MOD(База[[#This Row],[От]],1) -> 02:39:17 | C130: 2016-03-14T19:27:47 | D130: =MOD(База[[#This Row],[До]],1) -> 19:27:47 | E130: Событие72 | F130: №1 | G130: действие49 | I130: 0.6 | J130: 8 | K130: =База[[#This Row],[№ события]]&База[[#This Row],[ 1-6]]&База[[#This Row],[№ действия]] -> Событие72№1действие49 | L130: =AND(VLOOKUP(База[[#This Row],[Уник]],Уникальные[],2,FALSE)<>0,VLOOKUP(База[[#This Row],[Уник]],Уникальные[],3,FALSE)<>0) ->  | M130: =VLOOKUP(База[[#This Row],[Уник]],Уникальные[],2,FALSE) ->  | N130: =VLOOKUP(База[[#This Row],[Уник]],Уникальные[],3,FALSE) -> 
A131: 2016-03-14T02:41:04 | B131: =MOD(База[[#This Row],[От]],1) -> 02:41:04 | C131: 2016-03-14T19:28:17 | D131: =MOD(База[[#This Row],[До]],1) -> 19:28:17 | E131: Событие73 | F131: №4 | G131: действие75 | I131: 0.91 | J131: 9 | K131: =База[[#This Row],[№ события]]&База[[#This Row],[ 1-6]]&База[[#This Row],[№ действия]] -> Событие73№4действие75 | L131: =AND(VLOOKUP(База[[#This Row],[Уник]],Уникальные[],2,FALSE)<>0,VLOOKUP(База[[#This Row],[Уник]],Уникальные[],3,FALSE)<>0) ->  | M131: =VLOOKUP(База[[#This Row],[Уник]],Уникальные[],2,FALSE) ->  | N131: =VLOOKUP(База[[#This Row],[Уник]],Уникальные[],3,FALSE) -> 
A132: 2016-03-14T02:43:58 | B132: =MOD(База[[#This Row],[От]],1) -> 02:43:58 | C132: 2016-03-14T15:19:25 | D132: =MOD(База[[#This Row],[До]],1) -> 15:19:25 | E132: Событие74 | F132: №3 | G132: действие76 | I132: 0.68 | J132: 18 | K132: =База[[#This Row],[№ события]]&База[[#This Row],[ 1-6]]&База[[#This Row],[№ действия]] -> Событие74№3действие76 | L132: =AND(VLOOKUP(База[[#This Row],[Уник]],Уникальные[],2,FALSE)<>0,VLOOKUP(База[[#This Row],[Уник]],Уникальные[],3,FALSE)<>0) ->  | M132: =VLOOKUP(База[[#This Row],[Уник]],Уникальные[],2,FALSE) ->  | N132: =VLOOKUP(База[[#This Row],[Уник]],Уникальные[],3,FALSE) -> 
A133: 2016-03-14T02:45:34 | B133: =MOD(База[[#This Row],[От]],1) -> 02:45:34 | C133: 2016-03-14T16:49:01 | D133: =MOD(База[[#This Row],[До]],1) -> 16:49:01 | E133: Событие75 | F133: №1 | G133: действие77 | I133: 0.93 | J133: 7 | K133: =База[[#This Row],[№ события]]&База[[#This Row],[ 1-6]]&База[[#This Row],[№ действия]] -> Событие75№1действие77 | L133: =AND(VLOOKUP(База[[#This Row],[Уник]],Уникальные[],2,FALSE)<>0,VLOOKUP(База[[#This Row],[Уник]],Уникальные[],3,FALSE)<>0) ->  | M133: =VLOOKUP(База[[#This Row],[Уник]],Уникальные[],2,FALSE) ->  | N133: =VLOOKUP(База[[#This Row],[Уник]],Уникальные[],3,FALSE) -> 
A134: 2016-03-14T02:45:53 | B134: =MOD(База[[#This Row],[От]],1) -> 02:45:53 | C134: 2016-03-14T03:49:45 | D134: =MOD(База[[#This Row],[До]],1) -> 03:49:45 | E134: Событие75 | F134: №5 | G134: действие41 | I134: 0.8 | J134: 10 | K134: =База[[#This Row],[№ события]]&База[[#This Row],[ 1-6]]&База[[#This Row],[№ действия]] -> Событие75№5действие41 | L134: =AND(VLOOKUP(База[[#This Row],[Уник]],Уникальные[],2,FALSE)<>0,VLOOKUP(База[[#This Row],[Уник]],Уникальные[],3,FALSE)<>0) ->  | M134: =VLOOKUP(База[[#This Row],[Уник]],Уникальные[],2,FALSE) ->  | N134: =VLOOKUP(База[[#This Row],[Уник]],Уникальные[],3,FALSE) -> 
A135: 2016-03-14T02:47:32 | B135: =MOD(База[[#This Row],[От]],1) -> 02:47:32 | C135: 2016-03-14T02:47:32 | D135: =MOD(База[[#This Row],[До]],1) -> 02:47:32 | E135: Событие76 | F135: №3 | G135: действие13 | I135: 0.64 | J135: 9 | K135: =База[[#This Row],[№ события]]&База[[#This Row],[ 1-6]]&База[[#This Row],[№ действия]] -> Событие76№3действие13 | L135: =AND(VLOOKUP(База[[#This Row],[Уник]],Уникальные[],2,FALSE)<>0,VLOOKUP(База[[#This Row],[Уник]],Уникальные[],3,FALSE)<>0) ->  | M135: =VLOOKUP(База[[#This Row],[Уник]],Уникальные[],2,FALSE) ->  | N135: =VLOOKUP(База[[#This Row],[Уник]],Уникальные[],3,FALSE) -> 
A136: 2016-03-14T02:52:58 | B136: =MOD(База[[#This Row],[От]],1) -> 02:52:58 | C136: 2016-03-14T14:30:16 | D136: =MOD(База[[#This Row],[До]],1) -> 14:30:16 | E136: Событие77 | F136: №6 | G136: действие39 | I136: 0.84 | J136: 8 | K136: =База[[#This Row],[№ события]]&База[[#This Row],[ 1-6]]&База[[#This Row],[№ действия]] -> Событие77№6действие39 | L136: =AND(VLOOKUP(База[[#This Row],[Уник]],Уникальные[],2,FALSE)<>0,VLOOKUP(База[[#This Row],[Уник]],Уникальные[],3,FALSE)<>0) ->  | M136: =VLOOKUP(База[[#This Row],[Уник]],Уникальные[],2,FALSE) ->  | N136: =VLOOKUP(База[[#This Row],[Уник]],Уникальные[],3,FALSE) -> 
A137: 2016-03-14T02:53:32 | B137: =MOD(База[[#This Row],[От]],1) -> 02:53:32 | C137: 2016-03-14T11:35:28 | D137: =MOD(База[[#This Row],[До]],1) -> 11:35:28 | E137: Событие78 | F137: №5 | G137: действие34 | I137: 0.98 | J137: 24 | K137: =База[[#This Row],[№ события]]&База[[#This Row],[ 1-6]]&База[[#This Row],[№ действия]] -> Событие78№5действие34 | L137: =AND(VLOOKUP(База[[#This Row],[Уник]],Уникальные[],2,FALSE)<>0,VLOOKUP(База[[#This Row],[Уник]],Уникальные[],3,FALSE)<>0) ->  | M137: =VLOOKUP(База[[#This Row],[Уник]],Уникальные[],2,FALSE) ->  | N137: =VLOOKUP(База[[#This Row],[Уник]],Уникальные[],3,FALSE) -> 
A138: 2016-03-14T02:54:55 | B138: =MOD(База[[#This Row],[От]],1) -> 02:54:55 | C138: 2016-03-14T02:54:55 | D138: =MOD(База[[#This Row],[До]],1) -> 02:54:55 | E138: Событие79 | F138: №6 | G138: действие59 | I138: 0.42 | J138: 10 | K138: =База[[#This Row],[№ события]]&База[[#This Row],[ 1-6]]&База[[#This Row],[№ действия]] -> Событие79№6действие59 | L138: =AND(VLOOKUP(База[[#This Row],[Уник]],Уникальные[],2,FALSE)<>0,VLOOKUP(База[[#This Row],[Уник]],Уникальные[],3,FALSE)<>0) ->  | M138: =VLOOKUP(База[[#This Row],[Уник]],Уникальные[],2,FALSE) ->  | N138: =VLOOKUP(База[[#This Row],[Уник]],Уникальные[],3,FALSE) -> 
A139: 2016-03-14T02:55:23 | B139: =MOD(База[[#This Row],[От]],1) -> 02:55:23 | C139: 2016-03-14T02:55:23 | D139: =MOD(База[[#This Row],[До]],1) -> 02:55:23 | E139: Событие80 | F139: №2 | G139: действие78 | I139: 0.54 | J139: 17 | K139: =База[[#This Row],[№ события]]&База[[#This Row],[ 1-6]]&База[[#This Row],[№ действия]] -> Событие80№2действие78 | L139: =AND(VLOOKUP(База[[#This Row],[Уник]],Уникальные[],2,FALSE)<>0,VLOOKUP(База[[#This Row],[Уник]],Уникальные[],3,FALSE)<>0) ->  | M139: =VLOOKUP(База[[#This Row],[Уник]],Уникальные[],2,FALSE) ->  | N139: =VLOOKUP(База[[#This Row],[Уник]],Уникальные[],3,FALSE) -> 
A140: 2016-03-14T02:55:32 | B140: =MOD(База[[#This Row],[От]],1) -> 02:55:32 | C140: 2016-03-14T05:20:23 | D140: =MOD(База[[#This Row],[До]],1) -> 05:20:23 | E140: Событие80 | F140: №3 | G140: действие79 | I140: 0.46 | J140: 12 | K140: =База[[#This Row],[№ события]]&База[[#This Row],[ 1-6]]&База[[#This Row],[№ действия]] -> Событие80№3действие79 | L140: =AND(VLOOKUP(База[[#This Row],[Уник]],Уникальные[],2,FALSE)<>0,VLOOKUP(База[[#This Row],[Уник]],Уникальные[],3,FALSE)<>0) ->  | M140: =VLOOKUP(База[[#This Row],[Уник]],Уникальные[],2,FALSE) ->  | N140: =VLOOKUP(База[[#This Row],[Уник]],Уникальные[],3,FALSE) -> 
A141: 2016-03-14T02:56:11 | B141: =MOD(База[[#This Row],[От]],1) -> 02:56:11 | C141: 2016-03-14T02:56:11 | D141: =MOD(База[[#This Row],[До]],1) -> 02:56:11 | E141: Событие81 | F141: №5 | G141: действие80 | I141: 1 | J141: 16 | K141: =База[[#This Row],[№ события]]&База[[#This Row],[ 1-6]]&База[[#This Row],[№ действия]] -> Событие81№5действие80 | L141: =AND(VLOOKUP(База[[#This Row],[Уник]],Уникальные[],2,FALSE)<>0,VLOOKUP(База[[#This Row],[Уник]],Уникальные[],3,FALSE)<>0) ->  | M141: =VLOOKUP(База[[#This Row],[Уник]],Уникальные[],2,FALSE) ->  | N141: =VLOOKUP(База[[#This Row],[Уник]],Уникальные[],3,FALSE) -> 
A142: 2016-03-14T03:50:11 | B142: =MOD(База[[#This Row],[От]],1) -> 03:50:11 | C142: 2016-03-14T19:30:06 | D142: =MOD(База[[#This Row],[До]],1) -> 19:30:06 | E142: Событие76 | F142: №3 | G142: действие13 | I142: 0.55 | J142: 9 | K142: =База[[#This Row],[№ события]]&База[[#This Row],[ 1-6]]&База[[#This Row],[№ действия]] -> Событие76№3действие13 | L142: =AND(VLOOKUP(База[[#This Row],[Уник]],Уникальные[],2,FALSE)<>0,VLOOKUP(База[[#This Row],[Уник]],Уникальные[],3,FALSE)<>0) ->  | M142: =VLOOKUP(База[[#This Row],[Уник]],Уникальные[],2,FALSE) ->  | N142: =VLOOKUP(База[[#This Row],[Уник]],Уникальные[],3,FALSE) -> 
A143: 2016-03-14T03:52:49 | B143: =MOD(База[[#This Row],[От]],1) -> 03:52:49 | C143: 2016-03-14T19:30:39 | D143: =MOD(База[[#This Row],[До]],1) -> 19:30:39 | E143: Событие82 | F143: №5 | G143: действие65 | I143: 0.93 | J143: 7 | K143: =База[[#This Row],[№ события]]&База[[#This Row],[ 1-6]]&База[[#This Row],[№ действия]] -> Событие82№5действие65 | L143: =AND(VLOOKUP(База[[#This Row],[Уник]],Уникальные[],2,FALSE)<>0,VLOOKUP(База[[#This Row],[Уник]],Уникальные[],3,FALSE)<>0) ->  | M143: =VLOOKUP(База[[#This Row],[Уник]],Уникальные[],2,FALSE) ->  | N143: =VLOOKUP(База[[#This Row],[Уник]],Уникальные[],3,FALSE) -> 
A144: 2016-03-14T04:01:00 | B144: =MOD(База[[#This Row],[От]],1) -> 04:01:00 | C144: 2016-03-14T04:01:00 | D144: =MOD(База[[#This Row],[До]],1) -> 04:01:00 | E144: Событие83 | F144: №2 | G144: действие10 | I144: 0.47 | J144: 9 | K144: =База[[#This Row],[№ события]]&База[[#This Row],[ 1-6]]&База[[#This Row],[№ действия]] -> Событие83№2действие10 | L144: =AND(VLOOKUP(База[[#This Row],[Уник]],Уникальные[],2,FALSE)<>0,VLOOKUP(База[[#This Row],[Уник]],Уникальные[],3,FALSE)<>0) ->  | M144: =VLOOKUP(База[[#This Row],[Уник]],Уникальные[],2,FALSE) ->  | N144: =VLOOKUP(База[[#This Row],[Уник]],Уникальные[],3,FALSE) -> 
A145: 2016-03-14T04:01:09 | B145: =MOD(База[[#This Row],[От]],1) -> 04:01:09 | C145: 2016-03-14T19:31:29 | D145: =MOD(База[[#This Row],[До]],1) -> 19:31:29 | E145: Событие83 | F145: №4 | G145: действие38 | I145: 1 | J145: 17 | K145: =База[[#This Row],[№ события]]&База[[#This Row],[ 1-6]]&База[[#This Row],[№ действия]] -> Событие83№4действие38 | L145: =AND(VLOOKUP(База[[#This Row],[Уник]],Уникальные[],2,FALSE)<>0,VLOOKUP(База[[#This Row],[Уник]],Уникальные[],3,FALSE)<>0) ->  | M145: =VLOOKUP(База[[#This Row],[Уник]],Уникальные[],2,FALSE) ->  | N145: =VLOOKUP(База[[#This Row],[Уник]],Уникальные[],3,FALSE) -> 
A146: 2016-03-14T04:01:17 | B146: =MOD(База[[#This Row],[От]],1) -> 04:01:17 | C146: 2016-03-14T19:31:38 | D146: =MOD(База[[#This Row],[До]],1) -> 19:31:38 | E146: Событие83 | F146: №6 | G146: действие6 | I146: 0.6 | J146: 10 | K146: =База[[#This Row],[№ события]]&База[[#This Row],[ 1-6]]&База[[#This Row],[№ действия]] -> Событие83№6действие6 | L146: =AND(VLOOKUP(База[[#This Row],[Уник]],Уникальные[],2,FALSE)<>0,VLOOKUP(База[[#This Row],[Уник]],Уникальные[],3,FALSE)<>0) ->  | M146: =VLOOKUP(База[[#This Row],[Уник]],Уникальные[],2,FALSE) ->  | N146: =VLOOKUP(База[[#This Row],[Уник]],Уникальные[],3,FALSE) -> 
A147: 2016-03-14T04:38:38 | B147: =MOD(База[[#This Row],[От]],1) -> 04:38:38 | C147: 2016-03-14T14:38:31 | D147: =MOD(База[[#This Row],[До]],1) -> 14:38:31 | E147: Событие84 | F147: №2 | G147: действие53 | I147: 0.37 | J147: 7 | K147: =База[[#This Row],[№ события]]&База[[#This Row],[ 1-6]]&База[[#This Row],[№ действия]] -> Событие84№2действие53 | L147: =AND(VLOOKUP(База[[#This Row],[Уник]],Уникальные[],2,FALSE)<>0,VLOOKUP(База[[#This Row],[Уник]],Уникальные[],3,FALSE)<>0) ->  | M147: =VLOOKUP(База[[#This Row],[Уник]],Уникальные[],2,FALSE) ->  | N147: =VLOOKUP(База[[#This Row],[Уник]],Уникальные[],3,FALSE) -> 
A148: 2016-03-14T04:39:04 | B148: =MOD(База[[#This Row],[От]],1) -> 04:39:04 | C148: 2016-03-14T16:07:47 | D148: =MOD(База[[#This Row],[До]],1) -> 16:07:47 | E148: Событие85 | F148: №2 | G148: действие65 | I148: 0.6 | J148: 20 | K148: =База[[#This Row],[№ события]]&База[[#This Row],[ 1-6]]&База[[#This Row],[№ действия]] -> Событие85№2действие65 | L148: =AND(VLOOKUP(База[[#This Row],[Уник]],Уникальные[],2,FALSE)<>0,VLOOKUP(База[[#This Row],[Уник]],Уникальные[],3,FALSE)<>0) ->  | M148: =VLOOKUP(База[[#This Row],[Уник]],Уникальные[],2,FALSE) ->  | N148: =VLOOKUP(База[[#This Row],[Уник]],Уникальные[],3,FALSE) -> 
A149: 2016-03-14T04:39:12 | B149: =MOD(База[[#This Row],[От]],1) -> 04:39:12 | C149: 2016-03-14T19:32:14 | D149: =MOD(База[[#This Row],[До]],1) -> 19:32:14 | E149: Событие85 | F149: №3 | G149: действие81 | I149: 0.79 | J149: 7 | K149: =База[[#This Row],[№ события]]&База[[#This Row],[ 1-6]]&База[[#This Row],[№ действия]] -> Событие85№3действие81 | L149: =AND(VLOOKUP(База[[#This Row],[Уник]],Уникальные[],2,FALSE)<>0,VLOOKUP(База[[#This Row],[Уник]],Уникальные[],3,FALSE)<>0) ->  | M149: =VLOOKUP(База[[#This Row],[Уник]],Уникальные[],2,FALSE) ->  | N149: =VLOOKUP(База[[#This Row],[Уник]],Уникальные[],3,FALSE) -> 
A150: 2016-03-14T04:39:20 | B150: =MOD(База[[#This Row],[От]],1) -> 04:39:20 | C150: 2016-03-14T19:32:22 | D150: =MOD(База[[#This Row],[До]],1) -> 19:32:22 | E150: Событие85 | F150: №4 | G150: действие82 | I150: 0.61 | J150: 25 | K150: =База[[#This Row],[№ события]]&База[[#This Row],[ 1-6]]&База[[#This Row],[№ действия]] -> Событие85№4действие82 | L150: =AND(VLOOKUP(База[[#This Row],[Уник]],Уникальные[],2,FALSE)<>0,VLOOKUP(База[[#This Row],[Уник]],Уникальные[],3,FALSE)<>0) ->  | M150: =VLOOKUP(База[[#This Row],[Уник]],Уникальные[],2,FALSE) ->  | N150: =VLOOKUP(База[[#This Row],[Уник]],Уникальные[],3,FALSE) -> 
A151: 2016-03-14T04:35:02 | B151: =MOD(База[[#This Row],[От]],1) -> 04:35:02 | C151: 2016-03-14T13:56:32 | D151: =MOD(База[[#This Row],[До]],1) -> 13:56:32 | E151: Событие86 | F151: №2 | G151: действие5 | I151: 0.6 | J151: 8 | K151: =База[[#This Row],[№ события]]&База[[#This Row],[ 1-6]]&База[[#This Row],[№ действия]] -> Событие86№2действие5 | L151: =AND(VLOOKUP(База[[#This Row],[Уник]],Уникальные[],2,FALSE)<>0,VLOOKUP(База[[#This Row],[Уник]],Уникальные[],3,FALSE)<>0) ->  | M151: =VLOOKUP(База[[#This Row],[Уник]],Уникальные[],2,FALSE) ->  | N151: =VLOOKUP(База[[#This Row],[Уник]],Уникальные[],3,FALSE) -> 
A152: 2016-03-14T04:35:32 | B152: =MOD(База[[#This Row],[От]],1) -> 04:35:32 | C152: 2016-03-14T19:33:23 | D152: =MOD(База[[#This Row],[До]],1) -> 19:33:23 | E152: Событие87 | F152: №6 | G152: действие59 | I152: 0.49 | J152: 12 | K152: =База[[#This Row],[№ события]]&База[[#This Row],[ 1-6]]&База[[#This Row],[№ действия]] -> Событие87№6действие59 | L152: =AND(VLOOKUP(База[[#This Row],[Уник]],Уникальные[],2,FALSE)<>0,VLOOKUP(База[[#This Row],[Уник]],Уникальные[],3,FALSE)<>0) ->  | M152: =VLOOKUP(База[[#This Row],[Уник]],Уникальные[],2,FALSE) ->  | N152: =VLOOKUP(База[[#This Row],[Уник]],Уникальные[],3,FALSE) -> 

Sheet Уникальные
A1: Уник | B1: От | C1: до
A2: Событие2№3действие2 | B2: 01:25:43 | C2: 04:37:33
A3: Событие1№3действие1 | B3: 17:22:26 | C3: 18:08:24
A4: Событие3№1действие3 | B4: 16:11:29 | C4: 01:26:29
A5: Событие3№2действие4 | B5: 12:29:34 | C5: 13:18:40

Sheet Варианты
A1: Стандартные
A2: Проводка ремонта | B2: 50% | C2: 10 | D2: % падает без повышения ремонтов
B3: =(B2*100-C2+A3*10)/100 -> 0.4 | C3: =C2+A3 -> 10
B4: =(B3*100-C3+A4*10)/100 -> 0.3 | C4: =C3+A4 -> 10
B5: =(B4*100-C4+A5*10)/100 -> 0.2 | C5: =C4+A5 -> 10
A7: Проводка ремонта | B7: 50% | C7: 10 | D7: % падает с повышением ремонтов
B8: =(B7*100-C7+A8*10)/100 -> 0.4 | C8: =C7+A8 -> 10
A9: 1 | B9: =(B8*100-C8+A9*10)/100 -> 0.4 | C9: =C8+A9 -> 11
B10: =(B9*100-C9+A10*10)/100 -> 0.29 | C10: =C9+A10 -> 11
A12: Нестандартные
A13: Проводка ремонта | B13: 50% | C13: 10 | D13: повышение ремонтов производится несколько раз за день, затем падает
A14: 1 | B14: =B13+Пример167[[#This Row],[Проводка ремонта]]*10/100 -> 0.6 | C14: =C13+A14 -> 11
A15: 2 | B15: =B14+Пример167[[#This Row],[Проводка ремонта]]*10/100 -> 0.8 | C15: =C14+A15 -> 13
B16: =(B15*100-Пример167[[#This Row],[10]])/100 -> 0.67 | C16: =C15+A16 -> 13
A18: Проводка ремонта | B18: 50% | C18: 10 | D18: повышение ремонтов производится несколько раз за день, затем падает(только в лог не попадает второго повышения)
A19: 1 | B19: =B18+Пример1678[[#This Row],[Проводка ремонта]]*10/100 -> 0.6 | C19: =C18+A19 -> 11
A20: 2 | B20: =B19+Пример1678[[#This Row],[Проводка ремонта]]*10/100 -> 0.8 | C20: =C19+A20 -> 13
B21: =(B20*100-Пример1678[[#This Row],[10]])/100 -> 0.67 | C21: =C20+A21 -> 13
